Department Family,Entity,Date,Expense Type,Expense Area,Supplier,Transaction Number,AP Amount
Department of Health,St. Helens&Knowsley Hospitals NHS Trust,31/03/2022,AUC Additions,Balance Sheet,VINCI CONSTRUCTION UK LTD,41711877,"480,000.00"
Department of Health,St. Helens&Knowsley Hospitals NHS Trust,31/03/2022,Audit Fees: Internal,FINANCE DIRECTORATE HQ,LIVERPOOL UNIVERSITY HOSPITALS NHS FOUNDATION TRUST,41459319,"25,172.96"
Department of Health,St. Helens&Knowsley Hospitals NHS Trust,31/03/2022,Blood Products,HAEM + BLOOD TRANSFUSION,NHS BLOOD & TRANSPLANT,41266181,"87,513.74"
Department of Health,St. Helens&Knowsley Hospitals NHS Trust,31/03/2022,Computer Hardware Purch,MMDA PROGRAMME COSTS - SHARED SERVICES,MTI TECHNOLOGY LTD,41647311,"35,275.89"
Department of Health,St. Helens&Knowsley Hospitals NHS Trust,31/03/2022,Computer Hardware Purch,MMDA PROGRAMME COSTS - SHARED SERVICES,MTI TECHNOLOGY LTD,41647311,"7,055.18"
Department of Health,St. Helens&Knowsley Hospitals NHS Trust,31/03/2022,Computer Maintenance,RADIOGRAPHY WHISTON,WELLBEING SOFTWARE LTD,40538613,"-5,306.13"
Department of Health,St. Helens&Knowsley Hospitals NHS Trust,31/03/2022,Computer Maintenance,RADIOGRAPHY WHISTON,WELLBEING SOFTWARE LTD,41061806,"-5,306.13"
Department of Health,St. Helens&Knowsley Hospitals NHS Trust,31/03/2022,Computer Maintenance,MMDA PROGRAMME COSTS - SHARED SERVICES,INSIGHT DIRECT (UK) LTD,41442955,"21,985.70"
Department of Health,St. Helens&Knowsley Hospitals NHS Trust,31/03/2022,Computer Maintenance,MMDA PROGRAMME COSTS - SHARED SERVICES,INSIGHT DIRECT (UK) LTD,41442955,"4,776.20"
Department of Health,St. Helens&Knowsley Hospitals NHS Trust,31/03/2022,Computer Maintenance,MMDA PROGRAMME COSTS - SHARED SERVICES,INSIGHT DIRECT (UK) LTD,41442955,"3,495.80"
Department of Health,St. Helens&Knowsley Hospitals NHS Trust,31/03/2022,Computer Maintenance,MMDA PROGRAMME COSTS - SHARED SERVICES,INSIGHT DIRECT (UK) LTD,41442955,"30,234.24"
Department of Health,St. Helens&Knowsley Hospitals NHS Trust,31/03/2022,Computer Maintenance,MMDA PROGRAMME COSTS - SHARED SERVICES,INSIGHT DIRECT (UK) LTD,41442955,"16,065.50"
Department of Health,St. Helens&Knowsley Hospitals NHS Trust,31/03/2022,Computer Maintenance,MMDA PROGRAMME COSTS - SHARED SERVICES,INSIGHT DIRECT (UK) LTD,41442955,"22,104.96"
Department of Health,St. Helens&Knowsley Hospitals NHS Trust,31/03/2022,Computer Maintenance,MMDA PROGRAMME COSTS - SHARED SERVICES,INSIGHT DIRECT (UK) LTD,41442955,"19,732.48"
Department of Health,St. Helens&Knowsley Hospitals NHS Trust,31/03/2022,Computer Maintenance,MMDA PROGRAMME COSTS - SHARED SERVICES,TRUSTCO PLC,41622996,"32,600.00"
Department of Health,St. Helens&Knowsley Hospitals NHS Trust,31/03/2022,Computer Maintenance,MMDA PROGRAMME COSTS - SHARED SERVICES,TRUSTCO PLC,41622996,"6,520.00"
Department of Health,St. Helens&Knowsley Hospitals NHS Trust,31/03/2022,Computer Maintenance,IMT SCHEMES FUND,PHOENIX PARTNERSHIP (LEEDS) LTD,41634613,"22,293.44"
Department of Health,St. Helens&Knowsley Hospitals NHS Trust,31/03/2022,Computer Maintenance,IMT SCHEMES FUND,PHOENIX PARTNERSHIP (LEEDS) LTD,41634613,"4,458.69"
Department of Health,St. Helens&Knowsley Hospitals NHS Trust,31/03/2022,Computer Maintenance,MMDA PROGRAMME COSTS - SHARED SERVICES,CDW LTD,41725883,"68,691.84"
Department of Health,St. Helens&Knowsley Hospitals NHS Trust,31/03/2022,Computer Maintenance,HEALTH RECORDS - SCANNING,CLARITY PRACTICE GROUP LTD (THE),41760606,"40,250.00"
Department of Health,St. Helens&Knowsley Hospitals NHS Trust,31/03/2022,Computer Maintenance,HEALTH RECORDS - SCANNING,CLARITY PRACTICE GROUP LTD (THE),41760606,"8,050.00"
Department of Health,St. Helens&Knowsley Hospitals NHS Trust,31/03/2022,Computer Software/License,TRUST IT SYSTEMS,SIMPLYBOOK ME LTD,41468479,"26,880.00"
Department of Health,St. Helens&Knowsley Hospitals NHS Trust,31/03/2022,Computer Software/License,MMDA PROGRAMME COSTS - SHARED SERVICES,TRUSTCO PLC,41588966,"118,800.00"
Department of Health,St. Helens&Knowsley Hospitals NHS Trust,31/03/2022,Computer Software/License,MMDA PROGRAMME COSTS - SHARED SERVICES,TRUSTCO PLC,41588966,"23,760.00"
Department of Health,St. Helens&Knowsley Hospitals NHS Trust,31/03/2022,Computer Software/License,MMDA PROGRAMME COSTS - SHARED SERVICES,CCUBE SOLUTIONS LTD,41726083,"61,975.00"
Department of Health,St. Helens&Knowsley Hospitals NHS Trust,31/03/2022,Continence Products,COMMUNITY CONTINENCE SERVICE,ESSITY UK LTD,41671813,"36,521.33"
Department of Health,St. Helens&Knowsley Hospitals NHS Trust,31/03/2022,Course Fees,MMDA PROGRAMME COSTS - SHARED SERVICES,QA LTD,41442830,"33,333.00"
Department of Health,St. Helens&Knowsley Hospitals NHS Trust,31/03/2022,Data Lines,MMDA PROGRAMME COSTS - SHARED SERVICES,JISC SERVICES LTD,41523662,"38,880.00"
Department of Health,St. Helens&Knowsley Hospitals NHS Trust,31/03/2022,Data Lines,MMDA PROGRAMME COSTS - SHARED SERVICES,VIRGIN MEDIA BUSINESS LTD,41792505,"34,881.60"
Department of Health,St. Helens&Knowsley Hospitals NHS Trust,31/03/2022,Drugs,DRUGS/M+S UNALLOCATED WH,AAH PHARMACEUTICALS LTD,41472286,118.52
Department of Health,St. Helens&Knowsley Hospitals NHS Trust,31/03/2022,Drugs,DRUGS/M+S UNALLOCATED WH,ALLIANCE HEALTHCARE DISTRIBUTION LTD,41647212,737.59
Department of Health,St. Helens&Knowsley Hospitals NHS Trust,31/03/2022,Drugs,DRUGS/M+S UNALLOCATED WH,ALLIANCE HEALTHCARE DISTRIBUTION LTD,41647212,"3,807.99"
Department of Health,St. Helens&Knowsley Hospitals NHS Trust,31/03/2022,Drugs,DRUGS/M+S UNALLOCATED WH,HEALTHCARE AT HOME LTD,41647217,"-1,553.42"
Department of Health,St. Helens&Knowsley Hospitals NHS Trust,31/03/2022,Equip Maint Contracts,RADIOGRAPHY WHISTON,SUPPLY CHAIN COORDINATION LIMITED,41523079,"16,211.29"
Department of Health,St. Helens&Knowsley Hospitals NHS Trust,31/03/2022,Equip Maint Contracts,RADIOGRAPHY WHISTON,SUPPLY CHAIN COORDINATION LIMITED,41523079,"5,199.99"
Department of Health,St. Helens&Knowsley Hospitals NHS Trust,31/03/2022,Equip Maint Contracts,RADIOGRAPHY WHISTON,SUPPLY CHAIN COORDINATION LIMITED,41523079,"4,282.26"
Department of Health,St. Helens&Knowsley Hospitals NHS Trust,31/03/2022,Medical Indemnity,LE-MANAGEMENT TEAM,MDDUS,41543580,"36,240.95"
Department of Health,St. Helens&Knowsley Hospitals NHS Trust,31/03/2022,IGComp3PSoft - Additions,Balance Sheet,SUPPLY CHAIN COORDINATION LIMITED,41769345,"80,038.41"
Department of Health,St. Helens&Knowsley Hospitals NHS Trust,31/03/2022,IGComp3PSoft - Additions,Balance Sheet,SUPPLY CHAIN COORDINATION LIMITED,41769345,"16,007.68"
Department of Health,St. Helens&Knowsley Hospitals NHS Trust,31/03/2022,IGComp3PSoft - Additions,Balance Sheet,SUPPLY CHAIN COORDINATION LIMITED,41769348,"80,038.41"
Department of Health,St. Helens&Knowsley Hospitals NHS Trust,31/03/2022,IGComp3PSoft - Additions,Balance Sheet,SUPPLY CHAIN COORDINATION LIMITED,41769348,"16,007.68"
Department of Health,St. Helens&Knowsley Hospitals NHS Trust,31/03/2022,IT Additions,Balance Sheet,INSIGHT DIRECT (UK) LTD,41439402,"158,392.50"
Department of Health,St. Helens&Knowsley Hospitals NHS Trust,31/03/2022,IT Additions,Balance Sheet,INSIGHT DIRECT (UK) LTD,41455027,"67,882.50"
Department of Health,St. Helens&Knowsley Hospitals NHS Trust,31/03/2022,IT Additions,Balance Sheet,INSIGHT DIRECT (UK) LTD,41680909,"58,831.50"
Department of Health,St. Helens&Knowsley Hospitals NHS Trust,31/03/2022,Laboratory Chemicals,HAEM + BLOOD TRANSFUSION,SYSMEX UK LTD,41455006,"39,858.71"
Department of Health,St. Helens&Knowsley Hospitals NHS Trust,31/03/2022,Laboratory Chemicals,HAEM + BLOOD TRANSFUSION,SYSMEX UK LTD,41455006,"7,971.74"
Department of Health,St. Helens&Knowsley Hospitals NHS Trust,31/03/2022,Laboratory Chemicals,HAEM + BLOOD TRANSFUSION,SYSMEX UK LTD,41580875,"39,858.71"
Department of Health,St. Helens&Knowsley Hospitals NHS Trust,31/03/2022,Laboratory Chemicals,HAEM + BLOOD TRANSFUSION,SYSMEX UK LTD,41580875,"7,971.74"
Department of Health,St. Helens&Knowsley Hospitals NHS Trust,31/03/2022,Laboratory Equipment,MICROBIOLOGY DEPT,CHRYSTAL CONSULTING LTD,40310954,"290,355.27"
Department of Health,St. Helens&Knowsley Hospitals NHS Trust,31/03/2022,Laboratory Equipment,MICROBIOLOGY DEPT,CHRYSTAL CONSULTING LTD,40310954,"53,113.55"
Department of Health,St. Helens&Knowsley Hospitals NHS Trust,31/03/2022,Laboratory Equipment,MICROBIOLOGY DEPT,CHRYSTAL CONSULTING LTD,40900897,"67,814.89"
Department of Health,St. Helens&Knowsley Hospitals NHS Trust,31/03/2022,Laboratory Equipment,MICROBIOLOGY DEPT,CHRYSTAL CONSULTING LTD,40900897,"343,468.82"
Department of Health,St. Helens&Knowsley Hospitals NHS Trust,31/03/2022,Laboratory Equipment,MICROBIOLOGY DEPT,CHRYSTAL CONSULTING LTD,40900897,"82,256.74"
Department of Health,St. Helens&Knowsley Hospitals NHS Trust,31/03/2022,Laboratory Equipment,MICROBIOLOGY DEPT,CHRYSTAL CONSULTING LTD,41035570,"65,711.45"
Department of Health,St. Helens&Knowsley Hospitals NHS Trust,31/03/2022,Laboratory Equipment,MICROBIOLOGY DEPT,CHRYSTAL CONSULTING LTD,41035570,"13,142.29"
Department of Health,St. Helens&Knowsley Hospitals NHS Trust,31/03/2022,Laboratory Equipment,MICROBIOLOGY DEPT,CHRYSTAL CONSULTING LTD,41350252,"-343,468.82"
Department of Health,St. Helens&Knowsley Hospitals NHS Trust,31/03/2022,Laboratory Equipment,MICROBIOLOGY DEPT,CHRYSTAL CONSULTING LTD,41350252,"-68,693.76"
Department of Health,St. Helens&Knowsley Hospitals NHS Trust,31/03/2022,Laboratory Reagents,MICROBIOLOGY DEPT,CHRYSTAL CONSULTING LTD,41035570,"1,302,751.00"
Department of Health,St. Helens&Knowsley Hospitals NHS Trust,31/03/2022,Laboratory Reagents,MICROBIOLOGY DEPT,CHRYSTAL CONSULTING LTD,41035570,"260,550.20"
Department of Health,St. Helens&Knowsley Hospitals NHS Trust,31/03/2022,Laboratory Reagents,MICROBIOLOGY DEPT,MICROTECH,41793140,"73,170.46"
Department of Health,St. Helens&Knowsley Hospitals NHS Trust,31/03/2022,Laboratory Reagents,MICROBIOLOGY DEPT,MICROTECH,41793140,"14,634.09"
Department of Health,St. Helens&Knowsley Hospitals NHS Trust,31/03/2022,Laboratory Test Kits,POINT OF CARE,CHRYSTAL CONSULTING LTD,40185160,"28,203.41"
Department of Health,St. Helens&Knowsley Hospitals NHS Trust,31/03/2022,Laboratory Test Kits,POINT OF CARE,CHRYSTAL CONSULTING LTD,40185160,"5,640.68"
Department of Health,St. Helens&Knowsley Hospitals NHS Trust,31/03/2022,Laboratory Test Kits,POINT OF CARE,CHRYSTAL CONSULTING LTD,40197652,"28,222.92"
Department of Health,St. Helens&Knowsley Hospitals NHS Trust,31/03/2022,Laboratory Test Kits,A + E NURSING WHISTON,CHRYSTAL CONSULTING LTD,40845015,"10,157.15"
Department of Health,St. Helens&Knowsley Hospitals NHS Trust,31/03/2022,Laboratory Test Kits,A + E NURSING WHISTON,CHRYSTAL CONSULTING LTD,40845015,"5,026.87"
Department of Health,St. Helens&Knowsley Hospitals NHS Trust,31/03/2022,Laboratory Test Kits,A + E NURSING WHISTON,CHRYSTAL CONSULTING LTD,40845015,"3,036.81"
Department of Health,St. Helens&Knowsley Hospitals NHS Trust,31/03/2022,Laboratory Test Kits,CARDIO-RESPIRATORY (ECG),CHRYSTAL CONSULTING LTD,40845015,"3,089.08"
Department of Health,St. Helens&Knowsley Hospitals NHS Trust,31/03/2022,Laboratory Test Kits,CARDIO-RESPIRATORY (ECG),CHRYSTAL CONSULTING LTD,40845015,617.82
Department of Health,St. Helens&Knowsley Hospitals NHS Trust,31/03/2022,Laboratory Test Kits,DELIVERY SUITE,CHRYSTAL CONSULTING LTD,40845015,"3,762.62"
Department of Health,St. Helens&Knowsley Hospitals NHS Trust,31/03/2022,Laboratory Test Kits,DELIVERY SUITE,CHRYSTAL CONSULTING LTD,40845015,752.52
Department of Health,St. Helens&Knowsley Hospitals NHS Trust,31/03/2022,Laboratory Test Kits,ICU NURSING WHISTON,CHRYSTAL CONSULTING LTD,40845015,"4,827.69"
Department of Health,St. Helens&Knowsley Hospitals NHS Trust,31/03/2022,Laboratory Test Kits,ICU NURSING WHISTON,CHRYSTAL CONSULTING LTD,40845015,965.54
Department of Health,St. Helens&Knowsley Hospitals NHS Trust,31/03/2022,Laboratory Test Kits,SPECIAL CARE BABY UNIT,CHRYSTAL CONSULTING LTD,40845015,"3,762.62"
Department of Health,St. Helens&Knowsley Hospitals NHS Trust,31/03/2022,Laboratory Test Kits,SPECIAL CARE BABY UNIT,CHRYSTAL CONSULTING LTD,40845015,752.52
Department of Health,St. Helens&Knowsley Hospitals NHS Trust,31/03/2022,Laboratory Test Kits,WARD 1C ACUTE MEDICAL UNIT,CHRYSTAL CONSULTING LTD,40845015,"3,762.62"
Department of Health,St. Helens&Knowsley Hospitals NHS Trust,31/03/2022,Laboratory Test Kits,WARD 1C ACUTE MEDICAL UNIT,CHRYSTAL CONSULTING LTD,40845015,"-7,045.56"
Department of Health,St. Helens&Knowsley Hospitals NHS Trust,31/03/2022,Laboratory Test Kits,WARD 2B RESPIRATORY,CHRYSTAL CONSULTING LTD,40845015,"4,601.75"
Department of Health,St. Helens&Knowsley Hospitals NHS Trust,31/03/2022,Laboratory Test Kits,WARD 2B RESPIRATORY,CHRYSTAL CONSULTING LTD,40845015,920.35
Department of Health,St. Helens&Knowsley Hospitals NHS Trust,31/03/2022,Lease Rents,INFORMATION DEPARTMENT,SHL PROPERTIES AND INVESTMENTS LTD,41514373,"29,082.00"
Department of Health,St. Helens&Knowsley Hospitals NHS Trust,31/03/2022,Lease Rents,PFI DESIGN + CONSTRUCTION,HLGB,41599697,"56,250.00"
Department of Health,St. Helens&Knowsley Hospitals NHS Trust,31/03/2022,Lease Rents,PFI DESIGN + CONSTRUCTION,HLGB,41599697,"15,600.00"
Department of Health,St. Helens&Knowsley Hospitals NHS Trust,31/03/2022,Med & Surg Equip Disp,CONTINUING HEALTHCARE - ST HELENS,MASIMO EUROPE LTD,41488663,"23,000.00"
Department of Health,St. Helens&Knowsley Hospitals NHS Trust,31/03/2022,Med & Surg Equip Disp,CONTINUING HEALTHCARE - ST HELENS,MASIMO EUROPE LTD,41488663,"4,600.00"
Department of Health,St. Helens&Knowsley Hospitals NHS Trust,31/03/2022,Med & Surg Equip General,THEATRES MAIN ST HELEN'S,AAH PHARMACEUTICALS LTD,41472286,234.90
Department of Health,St. Helens&Knowsley Hospitals NHS Trust,31/03/2022,Med & Surg Maint Contract,COLD DECONTAMINATION WHISTON,ENVIROGEN WATER TECHNOLOGIES LTD,41755257,"4,875.00"
Department of Health,St. Helens&Knowsley Hospitals NHS Trust,31/03/2022,Med & Surg Maint Contract,COLD DECONTAMINATION WHISTON,ENVIROGEN WATER TECHNOLOGIES LTD,41755257,"16,200.00"
Department of Health,St. Helens&Knowsley Hospitals NHS Trust,31/03/2022,Med Equip Additions,Balance Sheet,SUPPLY CHAIN COORDINATION LIMITED,41442975,"60,449.29"
Department of Health,St. Helens&Knowsley Hospitals NHS Trust,31/03/2022,Med Equip Additions,Balance Sheet,SUPPLY CHAIN COORDINATION LIMITED,41442975,"12,089.86"
Department of Health,St. Helens&Knowsley Hospitals NHS Trust,31/03/2022,Med Equip Additions,Balance Sheet,ECHOSENS UK LTD,41473381,"1,150.00"
Department of Health,St. Helens&Knowsley Hospitals NHS Trust,31/03/2022,Med Equip Additions,Balance Sheet,ECHOSENS UK LTD,41473381,"38,250.00"
Department of Health,St. Helens&Knowsley Hospitals NHS Trust,31/03/2022,Med Equip Additions,Balance Sheet,ECHOSENS UK LTD,41473381,"18,000.00"
Department of Health,St. Helens&Knowsley Hospitals NHS Trust,31/03/2022,Med Equip Additions,Balance Sheet,ECHOSENS UK LTD,41473381,"13,812.50"
Department of Health,St. Helens&Knowsley Hospitals NHS Trust,31/03/2022,Med Equip Additions,Balance Sheet,KARL STORZ ENDOSCOPY UK LTD,41532124,"76,504.84"
Department of Health,St. Helens&Knowsley Hospitals NHS Trust,31/03/2022,Med Equip Additions,Balance Sheet,SUPPLY CHAIN COORDINATION LIMITED,41650281,"39,401.86"
Department of Health,St. Helens&Knowsley Hospitals NHS Trust,31/03/2022,Med Equip Additions,Balance Sheet,SUPPLY CHAIN COORDINATION LIMITED,41650281,"7,880.37"
Department of Health,St. Helens&Knowsley Hospitals NHS Trust,31/03/2022,Med Equip Additions,Balance Sheet,SUPPLY CHAIN COORDINATION LIMITED,41755264,"57,350.00"
Department of Health,St. Helens&Knowsley Hospitals NHS Trust,31/03/2022,Med Equip Additions,Balance Sheet,SUPPLY CHAIN COORDINATION LIMITED,41755264,"11,470.00"
Department of Health,St. Helens&Knowsley Hospitals NHS Trust,31/03/2022,Med Equip Additions,Balance Sheet,HILL-ROM LTD,41769347,124.85
Department of Health,St. Helens&Knowsley Hospitals NHS Trust,31/03/2022,Med Equip Additions,Balance Sheet,HILL-ROM LTD,41769347,753.42
Department of Health,St. Helens&Knowsley Hospitals NHS Trust,31/03/2022,Med Equip Additions,Balance Sheet,HILL-ROM LTD,41769347,"1,480.49"
Department of Health,St. Helens&Knowsley Hospitals NHS Trust,31/03/2022,Med Equip Additions,Balance Sheet,HILL-ROM LTD,41769347,980.03
Department of Health,St. Helens&Knowsley Hospitals NHS Trust,31/03/2022,Med Equip Additions,Balance Sheet,HILL-ROM LTD,41769347,864.24
Department of Health,St. Helens&Knowsley Hospitals NHS Trust,31/03/2022,Med Equip Additions,Balance Sheet,HILL-ROM LTD,41769347,79.94
Department of Health,St. Helens&Knowsley Hospitals NHS Trust,31/03/2022,Med Equip Additions,Balance Sheet,HILL-ROM LTD,41769347,190.75
Department of Health,St. Helens&Knowsley Hospitals NHS Trust,31/03/2022,Med Equip Additions,Balance Sheet,HILL-ROM LTD,41769347,106.44
Department of Health,St. Helens&Knowsley Hospitals NHS Trust,31/03/2022,Med Equip Additions,Balance Sheet,HILL-ROM LTD,41769347,123.08
Department of Health,St. Helens&Knowsley Hospitals NHS Trust,31/03/2022,Med Equip Additions,Balance Sheet,HILL-ROM LTD,41769347,257.22
Department of Health,St. Helens&Knowsley Hospitals NHS Trust,31/03/2022,Med Equip Additions,Balance Sheet,HILL-ROM LTD,41769347,"1,160.00"
Department of Health,St. Helens&Knowsley Hospitals NHS Trust,31/03/2022,Med Equip Additions,Balance Sheet,HILL-ROM LTD,41769347,"80,400.44"
Department of Health,St. Helens&Knowsley Hospitals NHS Trust,31/03/2022,Med Equip Additions,Balance Sheet,SUPPLY CHAIN COORDINATION LIMITED,41809029,"19,000.00"
Department of Health,St. Helens&Knowsley Hospitals NHS Trust,31/03/2022,Med Equip Additions,Balance Sheet,SUPPLY CHAIN COORDINATION LIMITED,41809029,"93,950.00"
Department of Health,St. Helens&Knowsley Hospitals NHS Trust,31/03/2022,Med Equip Additions,Balance Sheet,SUPPLY CHAIN COORDINATION LIMITED,41809029,"22,590.00"
Department of Health,St. Helens&Knowsley Hospitals NHS Trust,31/03/2022,Miscellaneous Expenditure,PFI ENABLING WORKS,NEW HOSPITALS (ST HELENS & KNOWSLEY) LTD,41499168,"1,039,948.20"
Department of Health,St. Helens&Knowsley Hospitals NHS Trust,31/03/2022,Miscellaneous Expenditure,HSDU WHISTON,SYNERGY HEALTH (UK) LTD,41505865,"178,291.49"
Department of Health,St. Helens&Knowsley Hospitals NHS Trust,31/03/2022,Miscellaneous Expenditure,HSDU WHISTON,SYNERGY HEALTH (UK) LTD,41555246,"27,437.36"
Department of Health,St. Helens&Knowsley Hospitals NHS Trust,31/03/2022,Miscellaneous Expenditure,PFI ENABLING WORKS,NEW HOSPITALS (ST HELENS & KNOWSLEY) LTD,41588968,"1,089,870.14"
Department of Health,St. Helens&Knowsley Hospitals NHS Trust,31/03/2022,Miscellaneous Expenditure,PFI ENABLING WORKS,NEW HOSPITALS (ST HELENS & KNOWSLEY) LTD,41588968,"217,964.30"
Department of Health,St. Helens&Knowsley Hospitals NHS Trust,31/03/2022,Miscellaneous Expenditure,BEVAN COURT FM,NEW HOSPITALS (ST HELENS & KNOWSLEY) LTD,41631074,"72,482.97"
Department of Health,St. Helens&Knowsley Hospitals NHS Trust,31/03/2022,Mobile Phones,A + E MEDICAL STAFF WH,VODAFONE LTD,41706248,36.00
Department of Health,St. Helens&Knowsley Hospitals NHS Trust,31/03/2022,Mobile Phones,A + E NURSING WHISTON,VODAFONE LTD,41706248,36.36
Department of Health,St. Helens&Knowsley Hospitals NHS Trust,31/03/2022,Mobile Phones,ACUTE KIDNEY INJURY SERVICE,VODAFONE LTD,41706248,6.06
Department of Health,St. Helens&Knowsley Hospitals NHS Trust,31/03/2022,Mobile Phones,ACUTE KIDNEY INJURY SERVICE,VODAFONE LTD,41706248,30.30
Department of Health,St. Helens&Knowsley Hospitals NHS Trust,31/03/2022,Mobile Phones,AMU NURSE SPECIALISTS,VODAFONE LTD,41706248,36.01
Department of Health,St. Helens&Knowsley Hospitals NHS Trust,31/03/2022,Mobile Phones,AMU NURSE SPECIALISTS,VODAFONE LTD,41706248,180.00
Department of Health,St. Helens&Knowsley Hospitals NHS Trust,31/03/2022,Mobile Phones,ANTI-COAGULATION NURSING TEAM,VODAFONE LTD,41706248,6.00
Department of Health,St. Helens&Knowsley Hospitals NHS Trust,31/03/2022,Mobile Phones,ANTI-COAGULATION NURSING TEAM,VODAFONE LTD,41706248,30.00
Department of Health,St. Helens&Knowsley Hospitals NHS Trust,31/03/2022,Mobile Phones,B + P MEDICAL PHOTOGRAPHY,VODAFONE LTD,41706248,72.00
Department of Health,St. Helens&Knowsley Hospitals NHS Trust,31/03/2022,Mobile Phones,B + P MEDICAL STAFF,VODAFONE LTD,41706248,115.20
Department of Health,St. Helens&Knowsley Hospitals NHS Trust,31/03/2022,Mobile Phones,BD INCOME-NON PARTNERS,VODAFONE LTD,41706248,6.00
Department of Health,St. Helens&Knowsley Hospitals NHS Trust,31/03/2022,Mobile Phones,BD INCOME-NON PARTNERS,VODAFONE LTD,41706248,30.00
Department of Health,St. Helens&Knowsley Hospitals NHS Trust,31/03/2022,Mobile Phones,BED MANAGEMENT,VODAFONE LTD,41706248,12.00
Department of Health,St. Helens&Knowsley Hospitals NHS Trust,31/03/2022,Mobile Phones,BED MANAGEMENT,VODAFONE LTD,41706248,60.00
Department of Health,St. Helens&Knowsley Hospitals NHS Trust,31/03/2022,Mobile Phones,BEVAN COURT 1,VODAFONE LTD,41706248,7.50
Department of Health,St. Helens&Knowsley Hospitals NHS Trust,31/03/2022,Mobile Phones,BEVAN COURT 1,VODAFONE LTD,41706248,37.50
Department of Health,St. Helens&Knowsley Hospitals NHS Trust,31/03/2022,Mobile Phones,BEVAN COURT 2,VODAFONE LTD,41706248,34.14
Department of Health,St. Helens&Knowsley Hospitals NHS Trust,31/03/2022,Mobile Phones,BEVAN COURT 2,VODAFONE LTD,41706248,170.65
Department of Health,St. Helens&Knowsley Hospitals NHS Trust,31/03/2022,Mobile Phones,BREAST SURGERY,VODAFONE LTD,41706248,9.00
Department of Health,St. Helens&Knowsley Hospitals NHS Trust,31/03/2022,Mobile Phones,BUSINESS RELATIONSHIPS,VODAFONE LTD,41706248,6.00
Department of Health,St. Helens&Knowsley Hospitals NHS Trust,31/03/2022,Mobile Phones,BUSINESS RELATIONSHIPS,VODAFONE LTD,41706248,30.00
Department of Health,St. Helens&Knowsley Hospitals NHS Trust,31/03/2022,Mobile Phones,C.O.P.D SERVICE (KPCT),VODAFONE LTD,41706248,1.50
Department of Health,St. Helens&Knowsley Hospitals NHS Trust,31/03/2022,Mobile Phones,C.O.P.D SERVICE (KPCT),VODAFONE LTD,41706248,7.50
Department of Health,St. Helens&Knowsley Hospitals NHS Trust,31/03/2022,Mobile Phones,C.O.P.D SERVICE (STHPCT),VODAFONE LTD,41706248,194.44
Department of Health,St. Helens&Knowsley Hospitals NHS Trust,31/03/2022,Mobile Phones,C.O.P.D SERVICE (STHPCT),VODAFONE LTD,41706248,972.00
Department of Health,St. Helens&Knowsley Hospitals NHS Trust,31/03/2022,Mobile Phones,CANCER CORE STAFF AND NON-PAY,VODAFONE LTD,41706248,12.00
Department of Health,St. Helens&Knowsley Hospitals NHS Trust,31/03/2022,Mobile Phones,CANCER CORE STAFF AND NON-PAY,VODAFONE LTD,41706248,60.00
Department of Health,St. Helens&Knowsley Hospitals NHS Trust,31/03/2022,Mobile Phones,CANCER NURSE SPEC MCG,VODAFONE LTD,41706248,12.06
Department of Health,St. Helens&Knowsley Hospitals NHS Trust,31/03/2022,Mobile Phones,CANCER NURSE SPEC MCG,VODAFONE LTD,41706248,60.30
Department of Health,St. Helens&Knowsley Hospitals NHS Trust,31/03/2022,Mobile Phones,CANCER NURSE SPEC SCG,VODAFONE LTD,41706248,90.00
Department of Health,St. Helens&Knowsley Hospitals NHS Trust,31/03/2022,Mobile Phones,CANCER SERVICES - ADMIN,VODAFONE LTD,41706248,8.40
Department of Health,St. Helens&Knowsley Hospitals NHS Trust,31/03/2022,Mobile Phones,CANCER SERVICES - ADMIN,VODAFONE LTD,41706248,42.00
Department of Health,St. Helens&Knowsley Hospitals NHS Trust,31/03/2022,Mobile Phones,CANCER SVS CO-ORDINATION,VODAFONE LTD,41706248,39.01
Department of Health,St. Helens&Knowsley Hospitals NHS Trust,31/03/2022,Mobile Phones,CANCER SVS CO-ORDINATION,VODAFONE LTD,41706248,195.00
Department of Health,St. Helens&Knowsley Hospitals NHS Trust,31/03/2022,Mobile Phones,CARDIO-RESPIRATORY (ECG),VODAFONE LTD,41706248,42.03
Department of Health,St. Helens&Knowsley Hospitals NHS Trust,31/03/2022,Mobile Phones,CARDIO-RESPIRATORY (ECG),VODAFONE LTD,41706248,210.10
Department of Health,St. Helens&Knowsley Hospitals NHS Trust,31/03/2022,Mobile Phones,CARDIOLOGY NURSING,VODAFONE LTD,41706248,29.41
Department of Health,St. Helens&Knowsley Hospitals NHS Trust,31/03/2022,Mobile Phones,CARDIOLOGY NURSING,VODAFONE LTD,41706248,147.00
Department of Health,St. Helens&Knowsley Hospitals NHS Trust,31/03/2022,Mobile Phones,CARDIOLOGY SNR MEDICAL,VODAFONE LTD,41706248,13.50
Department of Health,St. Helens&Knowsley Hospitals NHS Trust,31/03/2022,Mobile Phones,CARDIOLOGY SNR MEDICAL,VODAFONE LTD,41706248,67.50
Department of Health,St. Helens&Knowsley Hospitals NHS Trust,31/03/2022,Mobile Phones,CARE OF ELDERLY MED STAFF,VODAFONE LTD,41706248,121.74
Department of Health,St. Helens&Knowsley Hospitals NHS Trust,31/03/2022,Mobile Phones,CARE OF ELDERLY MED STAFF,VODAFONE LTD,41706248,608.56
Department of Health,St. Helens&Knowsley Hospitals NHS Trust,31/03/2022,Mobile Phones,CHAIRMAN'S OFFICE,VODAFONE LTD,41706248,42.50
Department of Health,St. Helens&Knowsley Hospitals NHS Trust,31/03/2022,Mobile Phones,CHAIRMAN'S OFFICE,VODAFONE LTD,41706248,212.44
Department of Health,St. Helens&Knowsley Hospitals NHS Trust,31/03/2022,Mobile Phones,CHIEF EXECUTIVE'S OFFICE,VODAFONE LTD,41706248,147.60
Department of Health,St. Helens&Knowsley Hospitals NHS Trust,31/03/2022,Mobile Phones,CHIEF EXECUTIVE'S OFFICE,VODAFONE LTD,41706248,737.86
Department of Health,St. Helens&Knowsley Hospitals NHS Trust,31/03/2022,Mobile Phones,CHILDRENS NURSING,VODAFONE LTD,41706248,194.45
Department of Health,St. Helens&Knowsley Hospitals NHS Trust,31/03/2022,Mobile Phones,CHILDRENS NURSING,VODAFONE LTD,41706248,972.08
Department of Health,St. Helens&Knowsley Hospitals NHS Trust,31/03/2022,Mobile Phones,CLINICAL GOVERNANCE TEAM,VODAFONE LTD,41706248,10.50
Department of Health,St. Helens&Knowsley Hospitals NHS Trust,31/03/2022,Mobile Phones,CLINICAL GOVERNANCE TEAM,VODAFONE LTD,41706248,52.50
Department of Health,St. Helens&Knowsley Hospitals NHS Trust,31/03/2022,Mobile Phones,CLINICAL PSYCHOLOGY,VODAFONE LTD,41706248,28.57
Department of Health,St. Helens&Knowsley Hospitals NHS Trust,31/03/2022,Mobile Phones,CLINICAL PSYCHOLOGY,VODAFONE LTD,41706248,142.80
Department of Health,St. Helens&Knowsley Hospitals NHS Trust,31/03/2022,Mobile Phones,CLINICAL SUPPORT DIV MGMT,VODAFONE LTD,41706248,35.01
Department of Health,St. Helens&Knowsley Hospitals NHS Trust,31/03/2022,Mobile Phones,CLINICAL SUPPORT DIV MGMT,VODAFONE LTD,41706248,175.00
Department of Health,St. Helens&Knowsley Hospitals NHS Trust,31/03/2022,Mobile Phones,COE NURSE SPECIALISTS,VODAFONE LTD,41706248,19.50
Department of Health,St. Helens&Knowsley Hospitals NHS Trust,31/03/2022,Mobile Phones,COE NURSE SPECIALISTS,VODAFONE LTD,41706248,97.50
Department of Health,St. Helens&Knowsley Hospitals NHS Trust,31/03/2022,Mobile Phones,COLD DECONTAMINATION,VODAFONE LTD,41706248,36.00
Department of Health,St. Helens&Knowsley Hospitals NHS Trust,31/03/2022,Mobile Phones,COLD DECONTAMINATION WHISTON,VODAFONE LTD,41706248,45.00
Department of Health,St. Helens&Knowsley Hospitals NHS Trust,31/03/2022,Mobile Phones,COMMUNICATIONS,VODAFONE LTD,41706248,70.02
Department of Health,St. Helens&Knowsley Hospitals NHS Trust,31/03/2022,Mobile Phones,COMMUNICATIONS,VODAFONE LTD,41706248,350.03
Department of Health,St. Helens&Knowsley Hospitals NHS Trust,31/03/2022,Mobile Phones,COMMUNITY CARDIAC TEAM,VODAFONE LTD,41706248,64.21
Department of Health,St. Helens&Knowsley Hospitals NHS Trust,31/03/2022,Mobile Phones,COMMUNITY CARDIAC TEAM,VODAFONE LTD,41706248,321.00
Department of Health,St. Helens&Knowsley Hospitals NHS Trust,31/03/2022,Mobile Phones,COMMUNITY CONTINENCE SERVICE,VODAFONE LTD,41706248,30.37
Department of Health,St. Helens&Knowsley Hospitals NHS Trust,31/03/2022,Mobile Phones,COMMUNITY CONTINENCE SERVICE,VODAFONE LTD,41706248,151.83
Department of Health,St. Helens&Knowsley Hospitals NHS Trust,31/03/2022,Mobile Phones,COMMUNITY FRAILTY SERVICE,VODAFONE LTD,41706248,85.52
Department of Health,St. Helens&Knowsley Hospitals NHS Trust,31/03/2022,Mobile Phones,COMMUNITY FRAILTY SERVICE,VODAFONE LTD,41706248,427.50
Department of Health,St. Helens&Knowsley Hospitals NHS Trust,31/03/2022,Mobile Phones,COMMUNITY MATRON,VODAFONE LTD,41706248,24.00
Department of Health,St. Helens&Knowsley Hospitals NHS Trust,31/03/2022,Mobile Phones,COMMUNITY MATRON,VODAFONE LTD,41706248,120.00
Department of Health,St. Helens&Knowsley Hospitals NHS Trust,31/03/2022,Mobile Phones,COMMUNITY MIDWIFERY,VODAFONE LTD,41706248,"5,343.01"
Department of Health,St. Helens&Knowsley Hospitals NHS Trust,31/03/2022,Mobile Phones,COMMUNITY NURSING MANAGEMENT,VODAFONE LTD,41706248,6.00
Department of Health,St. Helens&Knowsley Hospitals NHS Trust,31/03/2022,Mobile Phones,COMMUNITY NURSING MANAGEMENT,VODAFONE LTD,41706248,30.00
Department of Health,St. Helens&Knowsley Hospitals NHS Trust,31/03/2022,Mobile Phones,COMMUNITY PAEDIATRICS,VODAFONE LTD,41706248,134.71
Department of Health,St. Helens&Knowsley Hospitals NHS Trust,31/03/2022,Mobile Phones,COMMUNITY PAEDIATRICS,VODAFONE LTD,41706248,673.44
Department of Health,St. Helens&Knowsley Hospitals NHS Trust,31/03/2022,Mobile Phones,COMMUNITY SERVICES MANAGEMENT,VODAFONE LTD,41706248,51.06
Department of Health,St. Helens&Knowsley Hospitals NHS Trust,31/03/2022,Mobile Phones,COMMUNITY SERVICES MANAGEMENT,VODAFONE LTD,41706248,255.25
Department of Health,St. Helens&Knowsley Hospitals NHS Trust,31/03/2022,Mobile Phones,COMMUNITY SLA'S,VODAFONE LTD,41706248,24.00
Department of Health,St. Helens&Knowsley Hospitals NHS Trust,31/03/2022,Mobile Phones,COMMUNITY SLA'S,VODAFONE LTD,41706248,120.00
Department of Health,St. Helens&Knowsley Hospitals NHS Trust,31/03/2022,Mobile Phones,COMPLAINTS,VODAFONE LTD,41706248,10.80
Department of Health,St. Helens&Knowsley Hospitals NHS Trust,31/03/2022,Mobile Phones,COMPLAINTS,VODAFONE LTD,41706248,54.00
Department of Health,St. Helens&Knowsley Hospitals NHS Trust,31/03/2022,Mobile Phones,COVID,VODAFONE LTD,41706248,55.10
Department of Health,St. Helens&Knowsley Hospitals NHS Trust,31/03/2022,Mobile Phones,COVID,VODAFONE LTD,41706248,275.47
Department of Health,St. Helens&Knowsley Hospitals NHS Trust,31/03/2022,Mobile Phones,DELIVERY SUITE,VODAFONE LTD,41706248,9.00
Department of Health,St. Helens&Knowsley Hospitals NHS Trust,31/03/2022,Mobile Phones,DIABETES NURSING,VODAFONE LTD,41706248,58.73
Department of Health,St. Helens&Knowsley Hospitals NHS Trust,31/03/2022,Mobile Phones,DIABETES NURSING,VODAFONE LTD,41706248,293.57
Department of Health,St. Helens&Knowsley Hospitals NHS Trust,31/03/2022,Mobile Phones,DIABETES SNR MEDICAL,VODAFONE LTD,41706248,12.00
Department of Health,St. Helens&Knowsley Hospitals NHS Trust,31/03/2022,Mobile Phones,DIABETES SNR MEDICAL,VODAFONE LTD,41706248,60.00
Department of Health,St. Helens&Knowsley Hospitals NHS Trust,31/03/2022,Mobile Phones,DIABETES STP,VODAFONE LTD,41706248,72.01
Department of Health,St. Helens&Knowsley Hospitals NHS Trust,31/03/2022,Mobile Phones,DIABETES STP,VODAFONE LTD,41706248,360.00
Department of Health,St. Helens&Knowsley Hospitals NHS Trust,31/03/2022,Mobile Phones,DIGITAL ASPIRATION PRGRME,VODAFONE LTD,41706248,6.00
Department of Health,St. Helens&Knowsley Hospitals NHS Trust,31/03/2022,Mobile Phones,DIGITAL ASPIRATION PRGRME,VODAFONE LTD,41706248,30.00
Department of Health,St. Helens&Knowsley Hospitals NHS Trust,31/03/2022,Mobile Phones,DN CENTRAL,VODAFONE LTD,41706248,78.50
Department of Health,St. Helens&Knowsley Hospitals NHS Trust,31/03/2022,Mobile Phones,DN CENTRAL,VODAFONE LTD,41706248,392.40
Department of Health,St. Helens&Knowsley Hospitals NHS Trust,31/03/2022,Mobile Phones,DN HAYDOCK AND NEWTON,VODAFONE LTD,41706248,263.28
Department of Health,St. Helens&Knowsley Hospitals NHS Trust,31/03/2022,Mobile Phones,DN HAYDOCK AND NEWTON,VODAFONE LTD,41706248,"1,316.16"
Department of Health,St. Helens&Knowsley Hospitals NHS Trust,31/03/2022,Mobile Phones,DN NORTH,VODAFONE LTD,41706248,53.21
Department of Health,St. Helens&Knowsley Hospitals NHS Trust,31/03/2022,Mobile Phones,DN NORTH,VODAFONE LTD,41706248,266.00
Department of Health,St. Helens&Knowsley Hospitals NHS Trust,31/03/2022,Mobile Phones,DN SOUTH,VODAFONE LTD,41706248,122.05
Department of Health,St. Helens&Knowsley Hospitals NHS Trust,31/03/2022,Mobile Phones,DN SOUTH,VODAFONE LTD,41706248,610.14
Department of Health,St. Helens&Knowsley Hospitals NHS Trust,31/03/2022,Mobile Phones,DN St Helens OOH,VODAFONE LTD,41706248,48.72
Department of Health,St. Helens&Knowsley Hospitals NHS Trust,31/03/2022,Mobile Phones,DN St Helens OOH,VODAFONE LTD,41706248,243.53
Department of Health,St. Helens&Knowsley Hospitals NHS Trust,31/03/2022,Mobile Phones,DUFFY SUITE INTERMEDIATE CARE UNIT,VODAFONE LTD,41706248,6.00
Department of Health,St. Helens&Knowsley Hospitals NHS Trust,31/03/2022,Mobile Phones,DUFFY SUITE INTERMEDIATE CARE UNIT,VODAFONE LTD,41706248,30.00
Department of Health,St. Helens&Knowsley Hospitals NHS Trust,31/03/2022,Mobile Phones,EMERGENCY PLANNING,VODAFONE LTD,41706248,15.17
Department of Health,St. Helens&Knowsley Hospitals NHS Trust,31/03/2022,Mobile Phones,EMERGENCY PLANNING,VODAFONE LTD,41706248,75.85
Department of Health,St. Helens&Knowsley Hospitals NHS Trust,31/03/2022,Mobile Phones,EPMA,VODAFONE LTD,41706248,18.00
Department of Health,St. Helens&Knowsley Hospitals NHS Trust,31/03/2022,Mobile Phones,EPMA,VODAFONE LTD,41706248,90.00
Department of Health,St. Helens&Knowsley Hospitals NHS Trust,31/03/2022,Mobile Phones,ESTATE SURVEY SECTION,VODAFONE LTD,41706248,6.00
Department of Health,St. Helens&Knowsley Hospitals NHS Trust,31/03/2022,Mobile Phones,ESTATE SURVEY SECTION,VODAFONE LTD,41706248,30.00
Department of Health,St. Helens&Knowsley Hospitals NHS Trust,31/03/2022,Mobile Phones,EXECUTIVE PAYROLL,VODAFONE LTD,41706248,58.14
Department of Health,St. Helens&Knowsley Hospitals NHS Trust,31/03/2022,Mobile Phones,EXECUTIVE PAYROLL,VODAFONE LTD,41706248,290.66
Department of Health,St. Helens&Knowsley Hospitals NHS Trust,31/03/2022,Mobile Phones,FACILITIES MANAGEMENT,VODAFONE LTD,41706248,55.51
Department of Health,St. Helens&Knowsley Hospitals NHS Trust,31/03/2022,Mobile Phones,FACILITIES MANAGEMENT,VODAFONE LTD,41706248,277.50
Department of Health,St. Helens&Knowsley Hospitals NHS Trust,31/03/2022,Mobile Phones,FALLS NURSE,VODAFONE LTD,41706248,7.61
Department of Health,St. Helens&Knowsley Hospitals NHS Trust,31/03/2022,Mobile Phones,FALLS NURSE,VODAFONE LTD,41706248,38.05
Department of Health,St. Helens&Knowsley Hospitals NHS Trust,31/03/2022,Mobile Phones,FINANCE DIRECTORATE HQ,VODAFONE LTD,41706248,145.23
Department of Health,St. Helens&Knowsley Hospitals NHS Trust,31/03/2022,Mobile Phones,FINANCE DIRECTORATE HQ,VODAFONE LTD,41706248,726.00
Department of Health,St. Helens&Knowsley Hospitals NHS Trust,31/03/2022,Mobile Phones,GASTRO UPPER GI FUND,VODAFONE LTD,41706248,6.00
Department of Health,St. Helens&Knowsley Hospitals NHS Trust,31/03/2022,Mobile Phones,GASTRO UPPER GI FUND,VODAFONE LTD,41706248,30.00
Department of Health,St. Helens&Knowsley Hospitals NHS Trust,31/03/2022,Mobile Phones,GASTROLOGY NURSING,VODAFONE LTD,41706248,63.01
Department of Health,St. Helens&Knowsley Hospitals NHS Trust,31/03/2022,Mobile Phones,GASTROLOGY NURSING,VODAFONE LTD,41706248,315.00
Department of Health,St. Helens&Knowsley Hospitals NHS Trust,31/03/2022,Mobile Phones,GASTROLOGY SNR MEDICAL,VODAFONE LTD,41706248,64.01
Department of Health,St. Helens&Knowsley Hospitals NHS Trust,31/03/2022,Mobile Phones,GASTROLOGY SNR MEDICAL,VODAFONE LTD,41706248,320.00
Department of Health,St. Helens&Knowsley Hospitals NHS Trust,31/03/2022,Mobile Phones,GEN MED ENDOSCOPY H2,VODAFONE LTD,41706248,6.00
Department of Health,St. Helens&Knowsley Hospitals NHS Trust,31/03/2022,Mobile Phones,GEN MED ENDOSCOPY H2,VODAFONE LTD,41706248,30.00
Department of Health,St. Helens&Knowsley Hospitals NHS Trust,31/03/2022,Mobile Phones,GEN MEDICINE MEDICAL STF,VODAFONE LTD,41706248,25.50
Department of Health,St. Helens&Knowsley Hospitals NHS Trust,31/03/2022,Mobile Phones,GEN MEDICINE MEDICAL STF,VODAFONE LTD,41706248,127.50
Department of Health,St. Helens&Knowsley Hospitals NHS Trust,31/03/2022,Mobile Phones,GENERAL SURGERY MEDICAL,VODAFONE LTD,41706248,234.30
Department of Health,St. Helens&Knowsley Hospitals NHS Trust,31/03/2022,Mobile Phones,GYNAE OUTPATIEN ST HELENS,VODAFONE LTD,41706248,36.00
Department of Health,St. Helens&Knowsley Hospitals NHS Trust,31/03/2022,Mobile Phones,HAEM + BLOOD TRANSFUSION,VODAFONE LTD,41706248,24.00
Department of Health,St. Helens&Knowsley Hospitals NHS Trust,31/03/2022,Mobile Phones,HAEM + BLOOD TRANSFUSION,VODAFONE LTD,41706248,120.00
Department of Health,St. Helens&Knowsley Hospitals NHS Trust,31/03/2022,Mobile Phones,HAEMATOLOGY MEDICAL,VODAFONE LTD,41706248,31.51
Department of Health,St. Helens&Knowsley Hospitals NHS Trust,31/03/2022,Mobile Phones,HAEMATOLOGY MEDICAL,VODAFONE LTD,41706248,157.50
Department of Health,St. Helens&Knowsley Hospitals NHS Trust,31/03/2022,Mobile Phones,HISTOPATHOLOGY/MORTUARY,VODAFONE LTD,41706248,3.06
Department of Health,St. Helens&Knowsley Hospitals NHS Trust,31/03/2022,Mobile Phones,HISTOPATHOLOGY/MORTUARY,VODAFONE LTD,41706248,15.30
Department of Health,St. Helens&Knowsley Hospitals NHS Trust,31/03/2022,Mobile Phones,HOSPITAL DISCHARGE TEAM,VODAFONE LTD,41706248,23.62
Department of Health,St. Helens&Knowsley Hospitals NHS Trust,31/03/2022,Mobile Phones,HOSPITAL DISCHARGE TEAM,VODAFONE LTD,41706248,118.08
Department of Health,St. Helens&Knowsley Hospitals NHS Trust,31/03/2022,Mobile Phones,HUMAN RESOURCES - CORE HR,VODAFONE LTD,41706248,36.03
Department of Health,St. Helens&Knowsley Hospitals NHS Trust,31/03/2022,Mobile Phones,HUMAN RESOURCES - CORE HR,VODAFONE LTD,41706248,180.12
Department of Health,St. Helens&Knowsley Hospitals NHS Trust,31/03/2022,Mobile Phones,HUMAN RESOURCES - RESOURCING,VODAFONE LTD,41706248,257.83
Department of Health,St. Helens&Knowsley Hospitals NHS Trust,31/03/2022,Mobile Phones,HUMAN RESOURCES - RESOURCING,VODAFONE LTD,41706248,"1,288.89"
Department of Health,St. Helens&Knowsley Hospitals NHS Trust,31/03/2022,Mobile Phones,I T EXECUTIVE,VODAFONE LTD,41706248,13.00
Department of Health,St. Helens&Knowsley Hospitals NHS Trust,31/03/2022,Mobile Phones,I T EXECUTIVE,VODAFONE LTD,41706248,65.00
Department of Health,St. Helens&Knowsley Hospitals NHS Trust,31/03/2022,Mobile Phones,ICU MEDICAL STAFF WHISTON,VODAFONE LTD,41706248,263.71
Department of Health,St. Helens&Knowsley Hospitals NHS Trust,31/03/2022,Mobile Phones,ICU NURSING WHISTON,VODAFONE LTD,41706248,9.00
Department of Health,St. Helens&Knowsley Hospitals NHS Trust,31/03/2022,Mobile Phones,INFECTION CONTROL,VODAFONE LTD,41706248,10.50
Department of Health,St. Helens&Knowsley Hospitals NHS Trust,31/03/2022,Mobile Phones,INFECTION CONTROL,VODAFONE LTD,41706248,52.50
Department of Health,St. Helens&Knowsley Hospitals NHS Trust,31/03/2022,Mobile Phones,INFORMATION DEPARTMENT,VODAFONE LTD,41706248,30.01
Department of Health,St. Helens&Knowsley Hospitals NHS Trust,31/03/2022,Mobile Phones,INFORMATION DEPARTMENT,VODAFONE LTD,41706248,150.00
Department of Health,St. Helens&Knowsley Hospitals NHS Trust,31/03/2022,Mobile Phones,INTERNATIONAL RECRUITMENT,VODAFONE LTD,41706248,6.00
Department of Health,St. Helens&Knowsley Hospitals NHS Trust,31/03/2022,Mobile Phones,INTERNATIONAL RECRUITMENT,VODAFONE LTD,41706248,30.00
Department of Health,St. Helens&Knowsley Hospitals NHS Trust,31/03/2022,Mobile Phones,IRREG MAINT WHISTON,VODAFONE LTD,41706248,18.00
Department of Health,St. Helens&Knowsley Hospitals NHS Trust,31/03/2022,Mobile Phones,IRREG MAINT WHISTON,VODAFONE LTD,41706248,90.00
Department of Health,St. Helens&Knowsley Hospitals NHS Trust,31/03/2022,Mobile Phones,IV THERAPY ST HELENS,VODAFONE LTD,41706248,42.58
Department of Health,St. Helens&Knowsley Hospitals NHS Trust,31/03/2022,Mobile Phones,IV THERAPY ST HELENS,VODAFONE LTD,41706248,212.86
Department of Health,St. Helens&Knowsley Hospitals NHS Trust,31/03/2022,Mobile Phones,LE-HELPDESK,VODAFONE LTD,41706248,12.00
Department of Health,St. Helens&Knowsley Hospitals NHS Trust,31/03/2022,Mobile Phones,LE-HELPDESK,VODAFONE LTD,41706248,60.00
Department of Health,St. Helens&Knowsley Hospitals NHS Trust,31/03/2022,Mobile Phones,LE-MANAGEMENT TEAM,VODAFONE LTD,41706248,125.65
Department of Health,St. Helens&Knowsley Hospitals NHS Trust,31/03/2022,Mobile Phones,LE-MANAGEMENT TEAM,VODAFONE LTD,41706248,628.14
Department of Health,St. Helens&Knowsley Hospitals NHS Trust,31/03/2022,Mobile Phones,LE-ROTATE AND CTRCT AMNDMNTS,VODAFONE LTD,41706248,42.01
Department of Health,St. Helens&Knowsley Hospitals NHS Trust,31/03/2022,Mobile Phones,LE-ROTATE AND CTRCT AMNDMNTS,VODAFONE LTD,41706248,210.00
Department of Health,St. Helens&Knowsley Hospitals NHS Trust,31/03/2022,Mobile Phones,LEGAL SERVICES,VODAFONE LTD,41706248,6.00
Department of Health,St. Helens&Knowsley Hospitals NHS Trust,31/03/2022,Mobile Phones,LEGAL SERVICES,VODAFONE LTD,41706248,30.00
Department of Health,St. Helens&Knowsley Hospitals NHS Trust,31/03/2022,Mobile Phones,LIBRARY SERVICES,VODAFONE LTD,41706248,6.00
Department of Health,St. Helens&Knowsley Hospitals NHS Trust,31/03/2022,Mobile Phones,LIBRARY SERVICES,VODAFONE LTD,41706248,30.00
Department of Health,St. Helens&Knowsley Hospitals NHS Trust,31/03/2022,Mobile Phones,MARSHALLS CROSS MEDICAL CENTRE,VODAFONE LTD,41706248,6.00
Department of Health,St. Helens&Knowsley Hospitals NHS Trust,31/03/2022,Mobile Phones,MARSHALLS CROSS MEDICAL CENTRE,VODAFONE LTD,41706248,30.00
Department of Health,St. Helens&Knowsley Hospitals NHS Trust,31/03/2022,Mobile Phones,MCG DISCHARGE CO-ORDINATORS,VODAFONE LTD,41706248,85.64
Department of Health,St. Helens&Knowsley Hospitals NHS Trust,31/03/2022,Mobile Phones,MCG DISCHARGE CO-ORDINATORS,VODAFONE LTD,41706248,428.10
Department of Health,St. Helens&Knowsley Hospitals NHS Trust,31/03/2022,Mobile Phones,MED SECRETARIES BAND 3,VODAFONE LTD,41706248,45.00
Department of Health,St. Helens&Knowsley Hospitals NHS Trust,31/03/2022,Mobile Phones,MEDICAL CARE GROUP MGT,VODAFONE LTD,41706248,225.37
Department of Health,St. Helens&Knowsley Hospitals NHS Trust,31/03/2022,Mobile Phones,MEDICAL CARE GROUP MGT,VODAFONE LTD,41706248,"1,126.61"
Department of Health,St. Helens&Knowsley Hospitals NHS Trust,31/03/2022,Mobile Phones,MGMT SPECIALIST MIDWIVES,VODAFONE LTD,41706248,535.79
Department of Health,St. Helens&Knowsley Hospitals NHS Trust,31/03/2022,Mobile Phones,MICROBIOLOGY DEPT,VODAFONE LTD,41706248,69.61
Department of Health,St. Helens&Knowsley Hospitals NHS Trust,31/03/2022,Mobile Phones,MICROBIOLOGY DEPT,VODAFONE LTD,41706248,347.98
Department of Health,St. Helens&Knowsley Hospitals NHS Trust,31/03/2022,Mobile Phones,MICROBIOLOGY MED STAFF,VODAFONE LTD,41706248,12.00
Department of Health,St. Helens&Knowsley Hospitals NHS Trust,31/03/2022,Mobile Phones,MICROBIOLOGY MED STAFF,VODAFONE LTD,41706248,60.00
Department of Health,St. Helens&Knowsley Hospitals NHS Trust,31/03/2022,Mobile Phones,MMDA PROGRAMME COSTS - SHARED SERVICES,VODAFONE LTD,41706248,460.26
Department of Health,St. Helens&Knowsley Hospitals NHS Trust,31/03/2022,Mobile Phones,MMDA PROGRAMME COSTS - SHARED SERVICES,VODAFONE LTD,41706248,"2,300.86"
Department of Health,St. Helens&Knowsley Hospitals NHS Trust,31/03/2022,Mobile Phones,MVP LEAD EMPLOYER SUPPORT,VODAFONE LTD,41706248,57.01
Department of Health,St. Helens&Knowsley Hospitals NHS Trust,31/03/2022,Mobile Phones,MVP LEAD EMPLOYER SUPPORT,VODAFONE LTD,41706248,285.00
Department of Health,St. Helens&Knowsley Hospitals NHS Trust,31/03/2022,Mobile Phones,NEWS2 Project,VODAFONE LTD,41706248,6.00
Department of Health,St. Helens&Knowsley Hospitals NHS Trust,31/03/2022,Mobile Phones,NEWS2 Project,VODAFONE LTD,41706248,30.00
Department of Health,St. Helens&Knowsley Hospitals NHS Trust,31/03/2022,Mobile Phones,NEWTON HOSPITAL OP,VODAFONE LTD,41706248,9.00
Department of Health,St. Helens&Knowsley Hospitals NHS Trust,31/03/2022,Mobile Phones,NEWTON HOSPITAL OP,VODAFONE LTD,41706248,45.00
Department of Health,St. Helens&Knowsley Hospitals NHS Trust,31/03/2022,Mobile Phones,NEWTON INTERMEDIATE CARE SERVICE,VODAFONE LTD,41706248,49.94
Department of Health,St. Helens&Knowsley Hospitals NHS Trust,31/03/2022,Mobile Phones,NEWTON INTERMEDIATE CARE SERVICE,VODAFONE LTD,41706248,249.64
Department of Health,St. Helens&Knowsley Hospitals NHS Trust,31/03/2022,Mobile Phones,NURSING ADMINISTRATION,VODAFONE LTD,41706248,103.97
Department of Health,St. Helens&Knowsley Hospitals NHS Trust,31/03/2022,Mobile Phones,NURSING ADMINISTRATION,VODAFONE LTD,41706248,519.75
Department of Health,St. Helens&Knowsley Hospitals NHS Trust,31/03/2022,Mobile Phones,NURSING DIRECTOR ADMIN STAFF,VODAFONE LTD,41706248,6.00
Department of Health,St. Helens&Knowsley Hospitals NHS Trust,31/03/2022,Mobile Phones,NURSING DIRECTOR ADMIN STAFF,VODAFONE LTD,41706248,30.00
Department of Health,St. Helens&Knowsley Hospitals NHS Trust,31/03/2022,Mobile Phones,OBS + GYNAE MEDICAL STAFF,VODAFONE LTD,41706248,72.00
Department of Health,St. Helens&Knowsley Hospitals NHS Trust,31/03/2022,Mobile Phones,OCCUPATIONAL HEALTH MED,VODAFONE LTD,41706248,16.50
Department of Health,St. Helens&Knowsley Hospitals NHS Trust,31/03/2022,Mobile Phones,OCCUPATIONAL HEALTH MED,VODAFONE LTD,41706248,82.50
Department of Health,St. Helens&Knowsley Hospitals NHS Trust,31/03/2022,Mobile Phones,OCCUPATIONAL HEALTH NURS,VODAFONE LTD,41706248,18.00
Department of Health,St. Helens&Knowsley Hospitals NHS Trust,31/03/2022,Mobile Phones,OCCUPATIONAL HEALTH NURS,VODAFONE LTD,41706248,90.00
Department of Health,St. Helens&Knowsley Hospitals NHS Trust,31/03/2022,Mobile Phones,OPHTH RENNIE EYE CLINIC,VODAFONE LTD,41706248,10.13
Department of Health,St. Helens&Knowsley Hospitals NHS Trust,31/03/2022,Mobile Phones,OPHTH RENNIE EYE CLINIC,VODAFONE LTD,41706248,50.65
Department of Health,St. Helens&Knowsley Hospitals NHS Trust,31/03/2022,Mobile Phones,ORGANISATIONAL L And D,VODAFONE LTD,41706248,1.50
Department of Health,St. Helens&Knowsley Hospitals NHS Trust,31/03/2022,Mobile Phones,ORGANISATIONAL L And D,VODAFONE LTD,41706248,7.50
Department of Health,St. Helens&Knowsley Hospitals NHS Trust,31/03/2022,Mobile Phones,ORTHOPAEDIC MEDICAL STAFF,VODAFONE LTD,41706248,36.00
Department of Health,St. Helens&Knowsley Hospitals NHS Trust,31/03/2022,Mobile Phones,ORTHOPTICS DEPARTMENT,VODAFONE LTD,41706248,36.00
Department of Health,St. Helens&Knowsley Hospitals NHS Trust,31/03/2022,Mobile Phones,OUTPATIENTS ST HELENS,VODAFONE LTD,41706248,6.00
Department of Health,St. Helens&Knowsley Hospitals NHS Trust,31/03/2022,Mobile Phones,OUTPATIENTS ST HELENS,VODAFONE LTD,41706248,30.00
Department of Health,St. Helens&Knowsley Hospitals NHS Trust,31/03/2022,Mobile Phones,PAED SPECIALIST NURSES,VODAFONE LTD,41706248,117.76
Department of Health,St. Helens&Knowsley Hospitals NHS Trust,31/03/2022,Mobile Phones,PAEDIATRIC CONTINENCE,VODAFONE LTD,41706248,6.00
Department of Health,St. Helens&Knowsley Hospitals NHS Trust,31/03/2022,Mobile Phones,PAEDIATRIC CONTINENCE,VODAFONE LTD,41706248,30.00
Department of Health,St. Helens&Knowsley Hospitals NHS Trust,31/03/2022,Mobile Phones,PAEDIATRIC MEDICAL STAFF,VODAFONE LTD,41706248,9.00
Department of Health,St. Helens&Knowsley Hospitals NHS Trust,31/03/2022,Mobile Phones,PAEDIATRICS WARD CLERKS,VODAFONE LTD,41706248,9.00
Department of Health,St. Helens&Knowsley Hospitals NHS Trust,31/03/2022,Mobile Phones,PALLIATIVE CARE WHISTON,VODAFONE LTD,41706248,18.00
Department of Health,St. Helens&Knowsley Hospitals NHS Trust,31/03/2022,Mobile Phones,PALLIATIVE CARE WHISTON,VODAFONE LTD,41706248,90.00
Department of Health,St. Helens&Knowsley Hospitals NHS Trust,31/03/2022,Mobile Phones,PATHOLOGY GENERAL,VODAFONE LTD,41706248,117.18
Department of Health,St. Helens&Knowsley Hospitals NHS Trust,31/03/2022,Mobile Phones,PATHOLOGY GENERAL,VODAFONE LTD,41706248,585.79
Department of Health,St. Helens&Knowsley Hospitals NHS Trust,31/03/2022,Mobile Phones,PATIENT ACCESS MGMT,VODAFONE LTD,41706248,18.00
Department of Health,St. Helens&Knowsley Hospitals NHS Trust,31/03/2022,Mobile Phones,PATIENT ACCESS MGMT,VODAFONE LTD,41706248,90.00
Department of Health,St. Helens&Knowsley Hospitals NHS Trust,31/03/2022,Mobile Phones,PAYING PATIENTS,VODAFONE LTD,41706248,18.00
Department of Health,St. Helens&Knowsley Hospitals NHS Trust,31/03/2022,Mobile Phones,PAYING PATIENTS,VODAFONE LTD,41706248,90.00
Department of Health,St. Helens&Knowsley Hospitals NHS Trust,31/03/2022,Mobile Phones,PAYROLL SERVICES,VODAFONE LTD,41706248,50.66
Department of Health,St. Helens&Knowsley Hospitals NHS Trust,31/03/2022,Mobile Phones,PAYROLL SERVICES,VODAFONE LTD,41706248,253.23
Department of Health,St. Helens&Knowsley Hospitals NHS Trust,31/03/2022,Mobile Phones,PFI DESIGN + CONSTRUCTION,VODAFONE LTD,41706248,42.01
Department of Health,St. Helens&Knowsley Hospitals NHS Trust,31/03/2022,Mobile Phones,PFI DESIGN + CONSTRUCTION,VODAFONE LTD,41706248,210.00
Department of Health,St. Helens&Knowsley Hospitals NHS Trust,31/03/2022,Mobile Phones,PHARMACY GENERAL,VODAFONE LTD,41706248,115.81
Department of Health,St. Helens&Knowsley Hospitals NHS Trust,31/03/2022,Mobile Phones,PHARMACY GENERAL,VODAFONE LTD,41706248,578.93
Department of Health,St. Helens&Knowsley Hospitals NHS Trust,31/03/2022,Mobile Phones,PROJECTS And TRAINING,VODAFONE LTD,41706248,49.51
Department of Health,St. Helens&Knowsley Hospitals NHS Trust,31/03/2022,Mobile Phones,PROJECTS And TRAINING,VODAFONE LTD,41706248,247.50
Department of Health,St. Helens&Knowsley Hospitals NHS Trust,31/03/2022,Mobile Phones,RADIOGRAPHY WHISTON,VODAFONE LTD,41706248,12.08
Department of Health,St. Helens&Knowsley Hospitals NHS Trust,31/03/2022,Mobile Phones,RADIOGRAPHY WHISTON,VODAFONE LTD,41706248,60.38
Department of Health,St. Helens&Knowsley Hospitals NHS Trust,31/03/2022,Mobile Phones,RADIOLOGY MEDICAL STAFF,VODAFONE LTD,41706248,6.00
Department of Health,St. Helens&Knowsley Hospitals NHS Trust,31/03/2022,Mobile Phones,RADIOLOGY MEDICAL STAFF,VODAFONE LTD,41706248,30.00
Department of Health,St. Helens&Knowsley Hospitals NHS Trust,31/03/2022,Mobile Phones,RD AND I,VODAFONE LTD,41706248,19.50
Department of Health,St. Helens&Knowsley Hospitals NHS Trust,31/03/2022,Mobile Phones,RD AND I,VODAFONE LTD,41706248,97.50
Department of Health,St. Helens&Knowsley Hospitals NHS Trust,31/03/2022,Mobile Phones,REABLEMENT TEAM,VODAFONE LTD,41706248,22.50
Department of Health,St. Helens&Knowsley Hospitals NHS Trust,31/03/2022,Mobile Phones,REABLEMENT TEAM,VODAFONE LTD,41706248,112.50
Department of Health,St. Helens&Knowsley Hospitals NHS Trust,31/03/2022,Mobile Phones,REGIONAL CANCER TRANSFORMATION,VODAFONE LTD,41706248,16.00
Department of Health,St. Helens&Knowsley Hospitals NHS Trust,31/03/2022,Mobile Phones,REGIONAL CANCER TRANSFORMATION,VODAFONE LTD,41706248,80.00
Department of Health,St. Helens&Knowsley Hospitals NHS Trust,31/03/2022,Mobile Phones,REGIONAL VACCINATION CENTRE,VODAFONE LTD,41706248,24.00
Department of Health,St. Helens&Knowsley Hospitals NHS Trust,31/03/2022,Mobile Phones,REGIONAL VACCINATION CENTRE,VODAFONE LTD,41706248,120.00
Department of Health,St. Helens&Knowsley Hospitals NHS Trust,31/03/2022,Mobile Phones,RESPIRATORY NURSING,VODAFONE LTD,41706248,30.01
Department of Health,St. Helens&Knowsley Hospitals NHS Trust,31/03/2022,Mobile Phones,RESPIRATORY NURSING,VODAFONE LTD,41706248,150.00
Department of Health,St. Helens&Knowsley Hospitals NHS Trust,31/03/2022,Mobile Phones,RESPIRATORY SNR MEDICAL,VODAFONE LTD,41706248,66.01
Department of Health,St. Helens&Knowsley Hospitals NHS Trust,31/03/2022,Mobile Phones,RESPIRATORY SNR MEDICAL,VODAFONE LTD,41706248,330.00
Department of Health,St. Helens&Knowsley Hospitals NHS Trust,31/03/2022,Mobile Phones,RESUSCITATION TRAINING,VODAFONE LTD,41706248,6.00
Department of Health,St. Helens&Knowsley Hospitals NHS Trust,31/03/2022,Mobile Phones,RESUSCITATION TRAINING,VODAFONE LTD,41706248,30.00
Department of Health,St. Helens&Knowsley Hospitals NHS Trust,31/03/2022,Mobile Phones,SAFEGUARDING,VODAFONE LTD,41706248,19.50
Department of Health,St. Helens&Knowsley Hospitals NHS Trust,31/03/2022,Mobile Phones,SAFEGUARDING,VODAFONE LTD,41706248,97.50
Department of Health,St. Helens&Knowsley Hospitals NHS Trust,31/03/2022,Mobile Phones,SANDERSON SUITE GENERAL SURGERY,VODAFONE LTD,41706248,72.00
Department of Health,St. Helens&Knowsley Hospitals NHS Trust,31/03/2022,Mobile Phones,SECURITY SERVICES,VODAFONE LTD,41706248,42.01
Department of Health,St. Helens&Knowsley Hospitals NHS Trust,31/03/2022,Mobile Phones,SECURITY SERVICES,VODAFONE LTD,41706248,210.00
Department of Health,St. Helens&Knowsley Hospitals NHS Trust,31/03/2022,Mobile Phones,SEDDON SUITE TRAUMA REHAB UNIT,VODAFONE LTD,41706248,7.50
Department of Health,St. Helens&Knowsley Hospitals NHS Trust,31/03/2022,Mobile Phones,SEDDON SUITE TRAUMA REHAB UNIT,VODAFONE LTD,41706248,37.50
Department of Health,St. Helens&Knowsley Hospitals NHS Trust,31/03/2022,Mobile Phones,SEPSIS,VODAFONE LTD,41706248,6.00
Department of Health,St. Helens&Knowsley Hospitals NHS Trust,31/03/2022,Mobile Phones,SEPSIS,VODAFONE LTD,41706248,30.00
Department of Health,St. Helens&Knowsley Hospitals NHS Trust,31/03/2022,Mobile Phones,SERV INCR 4 TEACHING-SIFT,VODAFONE LTD,41706248,30.01
Department of Health,St. Helens&Knowsley Hospitals NHS Trust,31/03/2022,Mobile Phones,SERV INCR 4 TEACHING-SIFT,VODAFONE LTD,41706248,150.00
Department of Health,St. Helens&Knowsley Hospitals NHS Trust,31/03/2022,Mobile Phones,SERVICE DELIVERY INFRASTRUCTURE,VODAFONE LTD,41706248,30.01
Department of Health,St. Helens&Knowsley Hospitals NHS Trust,31/03/2022,Mobile Phones,SERVICE DELIVERY INFRASTRUCTURE,VODAFONE LTD,41706248,150.00
Department of Health,St. Helens&Knowsley Hospitals NHS Trust,31/03/2022,Mobile Phones,SERVICE DELIVERY OPERATIONS,VODAFONE LTD,41706248,6.00
Department of Health,St. Helens&Knowsley Hospitals NHS Trust,31/03/2022,Mobile Phones,SERVICE DELIVERY OPERATIONS,VODAFONE LTD,41706248,30.00
Department of Health,St. Helens&Knowsley Hospitals NHS Trust,31/03/2022,Mobile Phones,SEXUAL HEALTH,VODAFONE LTD,41706248,130.62
Department of Health,St. Helens&Knowsley Hospitals NHS Trust,31/03/2022,Mobile Phones,SEXUAL HEALTH,VODAFONE LTD,41706248,652.98
Department of Health,St. Helens&Knowsley Hospitals NHS Trust,31/03/2022,Mobile Phones,SHARED CARE RECORD - ST HELENS HEALTH ECONOMY,VODAFONE LTD,41706248,18.00
Department of Health,St. Helens&Knowsley Hospitals NHS Trust,31/03/2022,Mobile Phones,SHARED CARE RECORD - ST HELENS HEALTH ECONOMY,VODAFONE LTD,41706248,90.00
Department of Health,St. Helens&Knowsley Hospitals NHS Trust,31/03/2022,Mobile Phones,SOHT BLOOD SCIENCES,VODAFONE LTD,41706248,1.50
Department of Health,St. Helens&Knowsley Hospitals NHS Trust,31/03/2022,Mobile Phones,SOHT BLOOD SCIENCES,VODAFONE LTD,41706248,7.50
Department of Health,St. Helens&Knowsley Hospitals NHS Trust,31/03/2022,Mobile Phones,SOHT PHLEBOTOMY,VODAFONE LTD,41706248,38.22
Department of Health,St. Helens&Knowsley Hospitals NHS Trust,31/03/2022,Mobile Phones,SOHT PHLEBOTOMY,VODAFONE LTD,41706248,191.07
Department of Health,St. Helens&Knowsley Hospitals NHS Trust,31/03/2022,Mobile Phones,SOUTH TREATMENT ROOMS,VODAFONE LTD,41706248,6.51
Department of Health,St. Helens&Knowsley Hospitals NHS Trust,31/03/2022,Mobile Phones,SOUTH TREATMENT ROOMS,VODAFONE LTD,41706248,32.52
Department of Health,St. Helens&Knowsley Hospitals NHS Trust,31/03/2022,Mobile Phones,ST HELENS COMMUNITY PHLEBOTOMY,VODAFONE LTD,41706248,6.97
Department of Health,St. Helens&Knowsley Hospitals NHS Trust,31/03/2022,Mobile Phones,ST HELENS COMMUNITY PHLEBOTOMY,VODAFONE LTD,41706248,34.84
Department of Health,St. Helens&Knowsley Hospitals NHS Trust,31/03/2022,Mobile Phones,ST HELENS CONTACT CARE IC THERAPY TEAM,VODAFONE LTD,41706248,5.75
Department of Health,St. Helens&Knowsley Hospitals NHS Trust,31/03/2022,Mobile Phones,ST HELENS CONTACT CARE IC THERAPY TEAM,VODAFONE LTD,41706248,28.75
Department of Health,St. Helens&Knowsley Hospitals NHS Trust,31/03/2022,Mobile Phones,ST HELENS CONTACT CARES REABLEMENT TEAM,VODAFONE LTD,41706248,10.50
Department of Health,St. Helens&Knowsley Hospitals NHS Trust,31/03/2022,Mobile Phones,ST HELENS CONTACT CARES REABLEMENT TEAM,VODAFONE LTD,41706248,52.50
Department of Health,St. Helens&Knowsley Hospitals NHS Trust,31/03/2022,Mobile Phones,ST HELENS UTC,VODAFONE LTD,41706248,13.16
Department of Health,St. Helens&Knowsley Hospitals NHS Trust,31/03/2022,Mobile Phones,ST HELENS UTC,VODAFONE LTD,41706248,65.81
Department of Health,St. Helens&Knowsley Hospitals NHS Trust,31/03/2022,Mobile Phones,SURGICAL CARE MANAGEMENT,VODAFONE LTD,41706248,724.12
Department of Health,St. Helens&Knowsley Hospitals NHS Trust,31/03/2022,Mobile Phones,SURGICAL CARE SECS,VODAFONE LTD,41706248,36.00
Department of Health,St. Helens&Knowsley Hospitals NHS Trust,31/03/2022,Mobile Phones,THEATRES ANAESTHETICS WH,VODAFONE LTD,41706248,9.00
Department of Health,St. Helens&Knowsley Hospitals NHS Trust,31/03/2022,Mobile Phones,THEATRES BURNS + PLASTICS,VODAFONE LTD,41706248,45.00
Department of Health,St. Helens&Knowsley Hospitals NHS Trust,31/03/2022,Mobile Phones,THEATRES DIRECTORATE MGT,VODAFONE LTD,41706248,500.63
Department of Health,St. Helens&Knowsley Hospitals NHS Trust,31/03/2022,Mobile Phones,THEATRES ENT WHISTON,VODAFONE LTD,41706248,18.00
Department of Health,St. Helens&Knowsley Hospitals NHS Trust,31/03/2022,Mobile Phones,THEATRES GEN SURGERY/UROL,VODAFONE LTD,41706248,18.00
Department of Health,St. Helens&Knowsley Hospitals NHS Trust,31/03/2022,Mobile Phones,THEATRES MAIN ST HELEN'S,VODAFONE LTD,41706248,54.00
Department of Health,St. Helens&Knowsley Hospitals NHS Trust,31/03/2022,Mobile Phones,THEATRES MATERNITY WH,VODAFONE LTD,41706248,54.00
Department of Health,St. Helens&Knowsley Hospitals NHS Trust,31/03/2022,Mobile Phones,THEATRES MEDICAL STAFF,VODAFONE LTD,41706248,36.00
Department of Health,St. Helens&Knowsley Hospitals NHS Trust,31/03/2022,Mobile Phones,THEATRES TRAU ORTHOPAEDIC,VODAFONE LTD,41706248,9.00
Department of Health,St. Helens&Knowsley Hospitals NHS Trust,31/03/2022,Mobile Phones,THERAPY - ACUTE MEDICINE,VODAFONE LTD,41706248,6.91
Department of Health,St. Helens&Knowsley Hospitals NHS Trust,31/03/2022,Mobile Phones,THERAPY - ACUTE MEDICINE,VODAFONE LTD,41706248,34.52
Department of Health,St. Helens&Knowsley Hospitals NHS Trust,31/03/2022,Mobile Phones,THERAPY - AHP FACULTY PROJECT,VODAFONE LTD,41706248,6.01
Department of Health,St. Helens&Knowsley Hospitals NHS Trust,31/03/2022,Mobile Phones,THERAPY - AHP FACULTY PROJECT,VODAFONE LTD,41706248,30.04
Department of Health,St. Helens&Knowsley Hospitals NHS Trust,31/03/2022,Mobile Phones,THERAPY - MEDICINES FOR OLDER PEOPLE,VODAFONE LTD,41706248,1.50
Department of Health,St. Helens&Knowsley Hospitals NHS Trust,31/03/2022,Mobile Phones,THERAPY - MEDICINES FOR OLDER PEOPLE,VODAFONE LTD,41706248,7.50
Department of Health,St. Helens&Knowsley Hospitals NHS Trust,31/03/2022,Mobile Phones,THERAPY - SEDDON REHAB UNIT,VODAFONE LTD,41706248,6.00
Department of Health,St. Helens&Knowsley Hospitals NHS Trust,31/03/2022,Mobile Phones,THERAPY - SEDDON REHAB UNIT,VODAFONE LTD,41706248,30.00
Department of Health,St. Helens&Knowsley Hospitals NHS Trust,31/03/2022,Mobile Phones,THERAPY MANAGEMENT & ADMIN.,VODAFONE LTD,41706248,118.82
Department of Health,St. Helens&Knowsley Hospitals NHS Trust,31/03/2022,Mobile Phones,THERAPY MANAGEMENT & ADMIN.,VODAFONE LTD,41706248,593.96
Department of Health,St. Helens&Knowsley Hospitals NHS Trust,31/03/2022,Mobile Phones,TISSUE VIABILITY,VODAFONE LTD,41706248,9.00
Department of Health,St. Helens&Knowsley Hospitals NHS Trust,31/03/2022,Mobile Phones,TISSUE VIABILITY,VODAFONE LTD,41706248,45.00
Department of Health,St. Helens&Knowsley Hospitals NHS Trust,31/03/2022,Mobile Phones,TRANSFER LOUNGE,VODAFONE LTD,41706248,1.50
Department of Health,St. Helens&Knowsley Hospitals NHS Trust,31/03/2022,Mobile Phones,TRANSFER LOUNGE,VODAFONE LTD,41706248,7.50
Department of Health,St. Helens&Knowsley Hospitals NHS Trust,31/03/2022,Mobile Phones,TRUST IT SYSTEMS,VODAFONE LTD,41706248,11.68
Department of Health,St. Helens&Knowsley Hospitals NHS Trust,31/03/2022,Mobile Phones,TRUST IT SYSTEMS,VODAFONE LTD,41706248,58.39
Department of Health,St. Helens&Knowsley Hospitals NHS Trust,31/03/2022,Mobile Phones,TRUST RECHARGES,VODAFONE LTD,41706248,143.48
Department of Health,St. Helens&Knowsley Hospitals NHS Trust,31/03/2022,Mobile Phones,TRUST RECHARGES,VODAFONE LTD,41706248,717.27
Department of Health,St. Helens&Knowsley Hospitals NHS Trust,31/03/2022,Mobile Phones,UROLOGY MEDICAL STAFF,VODAFONE LTD,41706248,108.00
Department of Health,St. Helens&Knowsley Hospitals NHS Trust,31/03/2022,Mobile Phones,UROLOGY SUITE,VODAFONE LTD,41706248,81.00
Department of Health,St. Helens&Knowsley Hospitals NHS Trust,31/03/2022,Mobile Phones,VOLUNTEERS,VODAFONE LTD,41706248,12.00
Department of Health,St. Helens&Knowsley Hospitals NHS Trust,31/03/2022,Mobile Phones,VOLUNTEERS,VODAFONE LTD,41706248,60.00
Department of Health,St. Helens&Knowsley Hospitals NHS Trust,31/03/2022,Mobile Phones,WARD 1A MCG,VODAFONE LTD,41706248,31.95
Department of Health,St. Helens&Knowsley Hospitals NHS Trust,31/03/2022,Mobile Phones,WARD 1B ACUTE MEDICAL UNIT,VODAFONE LTD,41706248,36.00
Department of Health,St. Helens&Knowsley Hospitals NHS Trust,31/03/2022,Mobile Phones,WARD 1C ACUTE MEDICAL UNIT,VODAFONE LTD,41706248,72.36
Department of Health,St. Helens&Knowsley Hospitals NHS Trust,31/03/2022,Mobile Phones,WARD 1E CORONARY CARE UNIT,VODAFONE LTD,41706248,6.00
Department of Health,St. Helens&Knowsley Hospitals NHS Trust,31/03/2022,Mobile Phones,WARD 1E CORONARY CARE UNIT,VODAFONE LTD,41706248,30.00
Department of Health,St. Helens&Knowsley Hospitals NHS Trust,31/03/2022,Mobile Phones,WARD 2A HAEMATOLOGY,VODAFONE LTD,41706248,12.00
Department of Health,St. Helens&Knowsley Hospitals NHS Trust,31/03/2022,Mobile Phones,WARD 2A HAEMATOLOGY,VODAFONE LTD,41706248,60.00
Department of Health,St. Helens&Knowsley Hospitals NHS Trust,31/03/2022,Mobile Phones,WARD 2B RESPIRATORY,VODAFONE LTD,41706248,6.69
Department of Health,St. Helens&Knowsley Hospitals NHS Trust,31/03/2022,Mobile Phones,WARD 2B RESPIRATORY,VODAFONE LTD,41706248,33.45
Department of Health,St. Helens&Knowsley Hospitals NHS Trust,31/03/2022,Mobile Phones,WARD 2C RESPIRATORY,VODAFONE LTD,41706248,12.16
Department of Health,St. Helens&Knowsley Hospitals NHS Trust,31/03/2022,Mobile Phones,WARD 2C RESPIRATORY,VODAFONE LTD,41706248,60.79
Department of Health,St. Helens&Knowsley Hospitals NHS Trust,31/03/2022,Mobile Phones,WARD 2D GENERAL MEDICINE,VODAFONE LTD,41706248,6.00
Department of Health,St. Helens&Knowsley Hospitals NHS Trust,31/03/2022,Mobile Phones,WARD 2D GENERAL MEDICINE,VODAFONE LTD,41706248,30.00
Department of Health,St. Helens&Knowsley Hospitals NHS Trust,31/03/2022,Mobile Phones,WARD 3A PLASTICS,VODAFONE LTD,41706248,117.18
Department of Health,St. Helens&Knowsley Hospitals NHS Trust,31/03/2022,Mobile Phones,WARD 3ALPHA ORTHOPAEDICS,VODAFONE LTD,41706248,36.00
Department of Health,St. Helens&Knowsley Hospitals NHS Trust,31/03/2022,Mobile Phones,WARD 3B ORTHOPAEDICS,VODAFONE LTD,41706248,36.00
Department of Health,St. Helens&Knowsley Hospitals NHS Trust,31/03/2022,Mobile Phones,WARD 3D GASTROENTEROLOGY,VODAFONE LTD,41706248,12.00
Department of Health,St. Helens&Knowsley Hospitals NHS Trust,31/03/2022,Mobile Phones,WARD 3D GASTROENTEROLOGY,VODAFONE LTD,41706248,60.00
Department of Health,St. Helens&Knowsley Hospitals NHS Trust,31/03/2022,Mobile Phones,WARD 3E GYNAECOLOGY,VODAFONE LTD,41706248,144.00
Department of Health,St. Helens&Knowsley Hospitals NHS Trust,31/03/2022,Mobile Phones,WARD 3F PAEDIATRICS,VODAFONE LTD,41706248,302.29
Department of Health,St. Helens&Knowsley Hospitals NHS Trust,31/03/2022,Mobile Phones,WARD 4A GENERAL SURGERY,VODAFONE LTD,41706248,36.00
Department of Health,St. Helens&Knowsley Hospitals NHS Trust,31/03/2022,Mobile Phones,WARD 4B GENERAL SURGERY,VODAFONE LTD,41706248,36.00
Department of Health,St. Helens&Knowsley Hospitals NHS Trust,31/03/2022,Mobile Phones,WARD 4C GENERAL SURGERY,VODAFONE LTD,41706248,36.00
Department of Health,St. Helens&Knowsley Hospitals NHS Trust,31/03/2022,Mobile Phones,WARD 4D BURNS,VODAFONE LTD,41706248,103.66
Department of Health,St. Helens&Knowsley Hospitals NHS Trust,31/03/2022,Mobile Phones,WARD 5A CARE OF THE ELDERLY,VODAFONE LTD,41706248,6.00
Department of Health,St. Helens&Knowsley Hospitals NHS Trust,31/03/2022,Mobile Phones,WARD 5A CARE OF THE ELDERLY,VODAFONE LTD,41706248,30.00
Department of Health,St. Helens&Knowsley Hospitals NHS Trust,31/03/2022,Mobile Phones,WARD 5B CARE OF THE ELDERLY,VODAFONE LTD,41706248,6.00
Department of Health,St. Helens&Knowsley Hospitals NHS Trust,31/03/2022,Mobile Phones,WARD 5B CARE OF THE ELDERLY,VODAFONE LTD,41706248,30.00
Department of Health,St. Helens&Knowsley Hospitals NHS Trust,31/03/2022,Mobile Phones,WARD 5C ACUTE STROKE UNIT (HASU),VODAFONE LTD,41706248,31.65
Department of Health,St. Helens&Knowsley Hospitals NHS Trust,31/03/2022,Mobile Phones,WARD 5C ACUTE STROKE UNIT (HASU),VODAFONE LTD,41706248,158.23
Department of Health,St. Helens&Knowsley Hospitals NHS Trust,31/03/2022,Mobile Phones,WARD 5D ASU,VODAFONE LTD,41706248,6.00
Department of Health,St. Helens&Knowsley Hospitals NHS Trust,31/03/2022,Mobile Phones,WARD 5D ASU,VODAFONE LTD,41706248,30.00
Department of Health,St. Helens&Knowsley Hospitals NHS Trust,31/03/2022,Mobile Phones,WHIS THEATRES ANCIL & EMERG SUP STAFF,VODAFONE LTD,41706248,108.51
Department of Health,St. Helens&Knowsley Hospitals NHS Trust,31/03/2022,Mobile Phones,WHIS THEATRES EMERG WKDAY NGTS WKEND,VODAFONE LTD,41706248,36.00
Department of Health,St. Helens&Knowsley Hospitals NHS Trust,31/03/2022,Mobile Phones,WHISTON EQUIPMENT POOL,VODAFONE LTD,41706248,12.00
Department of Health,St. Helens&Knowsley Hospitals NHS Trust,31/03/2022,Mobile Phones,WHISTON EQUIPMENT POOL,VODAFONE LTD,41706248,60.00
Department of Health,St. Helens&Knowsley Hospitals NHS Trust,31/03/2022,Mobile Phones,WOMENS OPD,VODAFONE LTD,41706248,45.00
Department of Health,St. Helens&Knowsley Hospitals NHS Trust,31/03/2022,Mobile Phones,WORKFORCE INTELLIGENCE,VODAFONE LTD,41706248,18.00
Department of Health,St. Helens&Knowsley Hospitals NHS Trust,31/03/2022,Mobile Phones,WORKFORCE INTELLIGENCE,VODAFONE LTD,41706248,90.00
Department of Health,St. Helens&Knowsley Hospitals NHS Trust,31/03/2022,Various items,Various areas,SUPPLY CHAIN COORDINATION LIMITED,41459318,"159,821.72"
Department of Health,St. Helens&Knowsley Hospitals NHS Trust,31/03/2022,Various items,Various areas,SUPPLY CHAIN COORDINATION LIMITED,41547606,"167,812.73"
Department of Health,St. Helens&Knowsley Hospitals NHS Trust,31/03/2022,Various items,Various areas,SUPPLY CHAIN COORDINATION LIMITED,41588866,"193,846.06"
Department of Health,St. Helens&Knowsley Hospitals NHS Trust,31/03/2022,Various items,Various areas,SUPPLY CHAIN COORDINATION LIMITED,41731676,"175,373.26"
Department of Health,St. Helens&Knowsley Hospitals NHS Trust,31/03/2022,Other Clinical Costs,RADIOGRAPHY WHISTON,WELLBEING SOFTWARE LTD,40538613,"26,530.65"
Department of Health,St. Helens&Knowsley Hospitals NHS Trust,31/03/2022,Other Clinical Costs,RADIOGRAPHY WHISTON,WELLBEING SOFTWARE LTD,41061806,"26,530.65"
Department of Health,St. Helens&Knowsley Hospitals NHS Trust,31/03/2022,Other recvables - Current,Balance Sheet,VODAFONE LTD,41706248,6.00
Department of Health,St. Helens&Knowsley Hospitals NHS Trust,31/03/2022,Other recvables - Current,Balance Sheet,VODAFONE LTD,41706248,30.00
Department of Health,St. Helens&Knowsley Hospitals NHS Trust,31/03/2022,Postage & Carriage,HOTEL SERVICES MGT WHIST,PITNEY BOWES LTD,41459290,"58,875.74"
Department of Health,St. Helens&Knowsley Hospitals NHS Trust,31/03/2022,Postage & Carriage,HOTEL SERVICES MGT ST H,PITNEY BOWES LTD,41514421,"58,561.13"
Department of Health,St. Helens&Knowsley Hospitals NHS Trust,31/03/2022,Postage & Carriage,HOTEL SERVICES MGT WHIST,PITNEY BOWES LTD,41706571,"49,882.87"
Department of Health,St. Helens&Knowsley Hospitals NHS Trust,31/03/2022,Rates,RATES/WATER WHISTON,KNOWSLEY METROPOLITAN BOROUGH COUNCIL,41697507,"2,534,400.00"
Department of Health,St. Helens&Knowsley Hospitals NHS Trust,31/03/2022,Rent,MMDA PROGRAMME COSTS - SHARED SERVICES,SHL PROPERTIES AND INVESTMENTS LTD,41459292,"103,500.00"
Department of Health,St. Helens&Knowsley Hospitals NHS Trust,31/03/2022,Rent,CAR PARKING,SHL PROPERTIES AND INVESTMENTS LTD,41468460,"27,000.00"
Department of Health,St. Helens&Knowsley Hospitals NHS Trust,31/03/2022,Rent,LE-MANAGEMENT TEAM,SHL PROPERTIES AND INVESTMENTS LTD,41514379,"54,000.00"
Department of Health,St. Helens&Knowsley Hospitals NHS Trust,31/03/2022,Rent,COMMUNITY RENT,COMMUNITY HEALTH PARTNERSHIPS LTD,41598126,"29,350.64"
Department of Health,St. Helens&Knowsley Hospitals NHS Trust,31/03/2022,Rent,COMMUNITY RENT,COMMUNITY HEALTH PARTNERSHIPS LTD,41663001,"126,948.36"
Department of Health,St. Helens&Knowsley Hospitals NHS Trust,31/03/2022,Rent,B + P MEDICAL STAFF,BETSI CADWALADR UNIVERSITY HEALTH BOARD,41805829,"65,842.25"
Department of Health,St. Helens&Knowsley Hospitals NHS Trust,31/03/2022,SrvcsRecd-FoundationTrust,HUYTON UTC,MERSEY CARE NHS FOUNDATION TRUST,41459321,"84,211.00"
Department of Health,St. Helens&Knowsley Hospitals NHS Trust,31/03/2022,SrvcsRecd-FoundationTrust,CANCER CORE STAFF AND NON-PAY,UNIVERSITY HOSPITAL SOUTHAMPTON NHS FOUNDATION TRUST,41561617,"26,800.00"
Department of Health,St. Helens&Knowsley Hospitals NHS Trust,31/03/2022,SrvcsRecd-FoundationTrust,THERAPY - AHP FACULTY PROJECT,LIVERPOOL UNIVERSITY HOSPITALS NHS FOUNDATION TRUST,41588797,"55,397.00"
Department of Health,St. Helens&Knowsley Hospitals NHS Trust,31/03/2022,SrvcsRecd-FoundationTrust,REGIONAL CANCER TRANSFORMATION,LIVERPOOL UNIVERSITY HOSPITALS NHS FOUNDATION TRUST,41631022,"-37,737.50"
Department of Health,St. Helens&Knowsley Hospitals NHS Trust,31/03/2022,SrvcsRecd-FoundationTrust,REGIONAL CANCER TRANSFORMATION,LIVERPOOL UNIVERSITY HOSPITALS NHS FOUNDATION TRUST,41723439,"37,737.50"
Department of Health,St. Helens&Knowsley Hospitals NHS Trust,31/03/2022,SrvcsRecd-FoundationTrust,REGIONAL CANCER TRANSFORMATION,LIVERPOOL UNIVERSITY HOSPITALS NHS FOUNDATION TRUST,41723563,"37,310.00"
Department of Health,St. Helens&Knowsley Hospitals NHS Trust,31/03/2022,SrvcsRecd-FoundationTrust,CHEMICAL PATHOLOGY DEPT,LANCASHIRE TEACHING HOSPITALS NHS FOUNDATION TRUST,41754889,"40,573.69"
Department of Health,St. Helens&Knowsley Hospitals NHS Trust,31/03/2022,SrvcsRecd-FoundationTrust,CIPHA - STP SHARED CARE RECORD,LIVERPOOL UNIVERSITY HOSPITALS NHS FOUNDATION TRUST,41754974,"43,500.00"
Department of Health,St. Helens&Knowsley Hospitals NHS Trust,31/03/2022,SrvcsRecd-Other NHS,CIPHA - STP SHARED CARE RECORD,NHS MIDLANDS AND LANCASHIRE CSU,41754913,"37,975.00"
Department of Health,St. Helens&Knowsley Hospitals NHS Trust,31/03/2022,Stocks Raw Materials,Balance Sheet,ALLIANCE HEALTHCARE DISTRIBUTION LTD,41454607,"10,687.42"
Department of Health,St. Helens&Knowsley Hospitals NHS Trust,31/03/2022,Stocks Raw Materials,Balance Sheet,ALLIANCE HEALTHCARE DISTRIBUTION LTD,41454607,"54,850.30"
Department of Health,St. Helens&Knowsley Hospitals NHS Trust,31/03/2022,Stocks Raw Materials,Balance Sheet,HEALTHCARE AT HOME LTD,41454608,"59,157.53"
Department of Health,St. Helens&Knowsley Hospitals NHS Trust,31/03/2022,Stocks Raw Materials,Balance Sheet,ALLOGA UK LTD,41454609,"55,326.45"
Department of Health,St. Helens&Knowsley Hospitals NHS Trust,31/03/2022,Stocks Raw Materials,Balance Sheet,ALLIANCE HEALTHCARE DISTRIBUTION LTD,41454610,"58,744.97"
Department of Health,St. Helens&Knowsley Hospitals NHS Trust,31/03/2022,Stocks Raw Materials,Balance Sheet,HEALTHCARE AT HOME LTD,41454611,"99,568.81"
Department of Health,St. Helens&Knowsley Hospitals NHS Trust,31/03/2022,Stocks Raw Materials,Balance Sheet,AAH PHARMACEUTICALS LTD,41454612,"50,477.94"
Department of Health,St. Helens&Knowsley Hospitals NHS Trust,31/03/2022,Stocks Raw Materials,Balance Sheet,HEALTHCARE AT HOME LTD,41454613,"180,231.74"
Department of Health,St. Helens&Knowsley Hospitals NHS Trust,31/03/2022,Stocks Raw Materials,Balance Sheet,ALLIANCE HEALTHCARE DISTRIBUTION LTD,41454614,"9,040.97"
Department of Health,St. Helens&Knowsley Hospitals NHS Trust,31/03/2022,Stocks Raw Materials,Balance Sheet,ALLIANCE HEALTHCARE DISTRIBUTION LTD,41454614,"45,845.31"
Department of Health,St. Helens&Knowsley Hospitals NHS Trust,31/03/2022,Stocks Raw Materials,Balance Sheet,NOVARTIS PHARMACEUTICALS UK LTD,41470334,"21,903.84"
Department of Health,St. Helens&Knowsley Hospitals NHS Trust,31/03/2022,Stocks Raw Materials,Balance Sheet,NOVARTIS PHARMACEUTICALS UK LTD,41470334,"2,508.20"
Department of Health,St. Helens&Knowsley Hospitals NHS Trust,31/03/2022,Stocks Raw Materials,Balance Sheet,NOVARTIS PHARMACEUTICALS UK LTD,41470334,"1,229.04"
Department of Health,St. Helens&Knowsley Hospitals NHS Trust,31/03/2022,Stocks Raw Materials,Balance Sheet,NOVARTIS PHARMACEUTICALS UK LTD,41470334,551.10
Department of Health,St. Helens&Knowsley Hospitals NHS Trust,31/03/2022,Stocks Raw Materials,Balance Sheet,NOVARTIS PHARMACEUTICALS UK LTD,41470334,"9,693.97"
Department of Health,St. Helens&Knowsley Hospitals NHS Trust,31/03/2022,Stocks Raw Materials,Balance Sheet,NOVARTIS PHARMACEUTICALS UK LTD,41470334,6.73
Department of Health,St. Helens&Knowsley Hospitals NHS Trust,31/03/2022,Stocks Raw Materials,Balance Sheet,NOVARTIS PHARMACEUTICALS UK LTD,41470653,"25,643.52"
Department of Health,St. Helens&Knowsley Hospitals NHS Trust,31/03/2022,Stocks Raw Materials,Balance Sheet,NOVARTIS PHARMACEUTICALS UK LTD,41470653,0.84
Department of Health,St. Helens&Knowsley Hospitals NHS Trust,31/03/2022,Stocks Raw Materials,Balance Sheet,NOVARTIS PHARMACEUTICALS UK LTD,41470653,36.72
Department of Health,St. Helens&Knowsley Hospitals NHS Trust,31/03/2022,Stocks Raw Materials,Balance Sheet,NOVARTIS PHARMACEUTICALS UK LTD,41470653,13.22
Department of Health,St. Helens&Knowsley Hospitals NHS Trust,31/03/2022,Stocks Raw Materials,Balance Sheet,NOVARTIS PHARMACEUTICALS UK LTD,41470653,"6,462.65"
Department of Health,St. Helens&Knowsley Hospitals NHS Trust,31/03/2022,Stocks Raw Materials,Balance Sheet,NOVARTIS PHARMACEUTICALS UK LTD,41470653,11.23
Department of Health,St. Helens&Knowsley Hospitals NHS Trust,31/03/2022,Stocks Raw Materials,Balance Sheet,AAH PHARMACEUTICALS LTD,41472286,"106,767.94"
Department of Health,St. Helens&Knowsley Hospitals NHS Trust,31/03/2022,Stocks Raw Materials,Balance Sheet,HEALTHCARE AT HOME LTD,41490605,"112,466.44"
Department of Health,St. Helens&Knowsley Hospitals NHS Trust,31/03/2022,Stocks Raw Materials,Balance Sheet,ALLIANCE HEALTHCARE DISTRIBUTION LTD,41490606,"12,646.56"
Department of Health,St. Helens&Knowsley Hospitals NHS Trust,31/03/2022,Stocks Raw Materials,Balance Sheet,ALLIANCE HEALTHCARE DISTRIBUTION LTD,41490606,"51,190.35"
Department of Health,St. Helens&Knowsley Hospitals NHS Trust,31/03/2022,Stocks Raw Materials,Balance Sheet,ALLIANCE HEALTHCARE DISTRIBUTION LTD,41490607,"15,255.74"
Department of Health,St. Helens&Knowsley Hospitals NHS Trust,31/03/2022,Stocks Raw Materials,Balance Sheet,ALLIANCE HEALTHCARE DISTRIBUTION LTD,41490607,"54,148.30"
Department of Health,St. Helens&Knowsley Hospitals NHS Trust,31/03/2022,Stocks Raw Materials,Balance Sheet,ALLOGA UK LTD,41547754,"27,979.34"
Department of Health,St. Helens&Knowsley Hospitals NHS Trust,31/03/2022,Stocks Raw Materials,Balance Sheet,AAH PHARMACEUTICALS LTD,41547755,"46,281.41"
Department of Health,St. Helens&Knowsley Hospitals NHS Trust,31/03/2022,Stocks Raw Materials,Balance Sheet,ALLOGA UK LTD,41547758,"42,316.00"
Department of Health,St. Helens&Knowsley Hospitals NHS Trust,31/03/2022,Stocks Raw Materials,Balance Sheet,NOVARTIS PHARMACEUTICALS UK LTD,41555530,"22,438.08"
Department of Health,St. Helens&Knowsley Hospitals NHS Trust,31/03/2022,Stocks Raw Materials,Balance Sheet,NOVARTIS PHARMACEUTICALS UK LTD,41555530,1.49
Department of Health,St. Helens&Knowsley Hospitals NHS Trust,31/03/2022,Stocks Raw Materials,Balance Sheet,NOVARTIS PHARMACEUTICALS UK LTD,41555530,95.14
Department of Health,St. Helens&Knowsley Hospitals NHS Trust,31/03/2022,Stocks Raw Materials,Balance Sheet,NOVARTIS PHARMACEUTICALS UK LTD,41555530,49.44
Department of Health,St. Helens&Knowsley Hospitals NHS Trust,31/03/2022,Stocks Raw Materials,Balance Sheet,NOVARTIS PHARMACEUTICALS UK LTD,41555530,26.44
Department of Health,St. Helens&Knowsley Hospitals NHS Trust,31/03/2022,Stocks Raw Materials,Balance Sheet,NOVARTIS PHARMACEUTICALS UK LTD,41555530,10.85
Department of Health,St. Helens&Knowsley Hospitals NHS Trust,31/03/2022,Stocks Raw Materials,Balance Sheet,NOVARTIS PHARMACEUTICALS UK LTD,41555530,"10,483.20"
Department of Health,St. Helens&Knowsley Hospitals NHS Trust,31/03/2022,Stocks Raw Materials,Balance Sheet,NOVARTIS PHARMACEUTICALS UK LTD,41555530,2.24
Department of Health,St. Helens&Knowsley Hospitals NHS Trust,31/03/2022,Stocks Raw Materials,Balance Sheet,JANSSEN CILAG LTD,41645830,10.80
Department of Health,St. Helens&Knowsley Hospitals NHS Trust,31/03/2022,Stocks Raw Materials,Balance Sheet,JANSSEN CILAG LTD,41645830,"23,846.40"
Department of Health,St. Helens&Knowsley Hospitals NHS Trust,31/03/2022,Stocks Raw Materials,Balance Sheet,JANSSEN CILAG LTD,41645830,"3,179.52"
Department of Health,St. Helens&Knowsley Hospitals NHS Trust,31/03/2022,Stocks Raw Materials,Balance Sheet,JANSSEN CILAG LTD,41645830,"1,192.32"
Department of Health,St. Helens&Knowsley Hospitals NHS Trust,31/03/2022,Stocks Raw Materials,Balance Sheet,HEALTHCARE AT HOME LTD,41647209,"86,528.23"
Department of Health,St. Helens&Knowsley Hospitals NHS Trust,31/03/2022,Stocks Raw Materials,Balance Sheet,HEALTHCARE AT HOME LTD,41647210,"74,711.01"
Department of Health,St. Helens&Knowsley Hospitals NHS Trust,31/03/2022,Stocks Raw Materials,Balance Sheet,ALLIANCE HEALTHCARE DISTRIBUTION LTD,41647212,"8,051.01"
Department of Health,St. Helens&Knowsley Hospitals NHS Trust,31/03/2022,Stocks Raw Materials,Balance Sheet,ALLIANCE HEALTHCARE DISTRIBUTION LTD,41647212,"41,565.45"
Department of Health,St. Helens&Knowsley Hospitals NHS Trust,31/03/2022,Stocks Raw Materials,Balance Sheet,ALLIANCE HEALTHCARE DISTRIBUTION LTD,41647215,"10,665.55"
Department of Health,St. Helens&Knowsley Hospitals NHS Trust,31/03/2022,Stocks Raw Materials,Balance Sheet,ALLIANCE HEALTHCARE DISTRIBUTION LTD,41647215,"54,064.29"
Department of Health,St. Helens&Knowsley Hospitals NHS Trust,31/03/2022,Stocks Raw Materials,Balance Sheet,AAH PHARMACEUTICALS LTD,41647216,"53,621.53"
Department of Health,St. Helens&Knowsley Hospitals NHS Trust,31/03/2022,Stocks Raw Materials,Balance Sheet,HEALTHCARE AT HOME LTD,41647217,"118,329.59"
Department of Health,St. Helens&Knowsley Hospitals NHS Trust,31/03/2022,Stocks Raw Materials,Balance Sheet,ALLOGA UK LTD,41647218,"72,742.56"
Department of Health,St. Helens&Knowsley Hospitals NHS Trust,31/03/2022,Stocks Raw Materials,Balance Sheet,BAYER PLC,41751565,"26,461.22"
Department of Health,St. Helens&Knowsley Hospitals NHS Trust,31/03/2022,Training Expenses,THERAPY - AHP FACULTY PROJECT,WIRRAL UNIVERSITY TEACHING HOSPITAL NHS FOUNDATION TRUST,41548640,"33,460.00"
Department of Health,St. Helens&Knowsley Hospitals NHS Trust,31/03/2022,Training Materials,POST GRAD MEDICAL CENTRE,LAERDAL MEDICAL LTD,41531522,"61,460.10"
Department of Health,St. Helens&Knowsley Hospitals NHS Trust,31/03/2022,Training Materials,POST GRAD MEDICAL CENTRE,LAERDAL MEDICAL LTD,41531522,"12,292.02"
Department of Health,St. Helens&Knowsley Hospitals NHS Trust,31/03/2022,Water,RATES/WATER WHISTON,WATER PLUS,41427528,"33,871.46"
Department of Health,St. Helens&Knowsley Hospitals NHS Trust,31/03/2022,Water,RATES/WATER WHISTON,WATER PLUS,41598134,"27,951.88"
Department of Health,St. Helens&Knowsley Hospitals NHS Trust,31/03/2022,X-Ray Equipment Purchase,RADIOGRAPHY WHISTON,DIAGNOSTIC HEALTHCARE LTD,41499181,"49,000.00"
